{"text_format":"3","workbook":"xlsx","n_sheets":1,"sheets":["第二轮"],"not_rendered":{"defined_names":1},"read":"whole","date_system":"1900"}

{"sheet":"第二轮","index":0,"n_rows":202,"n_cols":16,"rows_kept":202,"merged":[[0,0,0,15]]}
["长春市面向2025年普通高校毕业生开展“强师计划”招聘教师岗位及资格条件一览表（2号）"]
["序号","地区","主管部门","招聘单位","岗位名称","岗位职级","经费类型","招聘人数","性别","学历要求","学位要求","所学专业","其他要求","报名邮箱及报名电话","纪检监督电话","备注"]
[{"$f":"ROW()-2","v":1},"市直","长春市教育局","长春教育学院","汉语言文学教师","初级专业技术岗位","财政拨款",1,"不限","硕士研究生及以上学历","与报名学历相对应的学位","研究生专业为：中国语言文学（一级学科）（0501）",null,"报名邮箱：ccjyxyrenshichu@163.com\n报名电话：0431-80526918","0431-88787036"]
[{"$f":"ROW()-2","v":2},"市直","长春市教育局","长春教育学院","教育学教师","初级专业技术岗位","财政拨款",1,"不限","硕士研究生及以上学历","与报名学历相对应的学位","研究生专业为：教育学（一级学科）（0401）、教育(一级学科）（专业学位）（0451)",null,"报名邮箱：ccjyxyrenshichu@163.com\n报名电话：0431-80526918","0431-88787036"]
[3,"市直","长春市教育局","长春开放大学","数学教师","初级专业技术岗位","财政拨款",1,"不限","硕士研究生及以上学历","与报名学历相对应的学位","研究生专业为：学科教学（数学）（专业学位）（045104）、数学（一级学科）（0701）",null,"报名邮箱：463062957@qq.com\n报名电话：0431-82857710","0431-88787036"]
[4,"市直","长春市教育局","长春开放大学","物理教师","初级专业技术岗位","财政拨款",1,"不限","硕士研究生及以上学历","与报名学历相对应的学位","研究生专业为：学科教学（物理）（专业学位）（045105）、物理学（一级学科）（0702）",null,"报名邮箱：463062957@qq.com\n报名电话：0431-82857710","0431-88787036"]
[5,"市直","长春市教育局","长春汽车职业技术大学","数学教师","初级专业技术岗位","财政拨款",1,"不限","硕士研究生及以上学历","与报名学历相对应的学位","研究生专业为：数学（一级学科）（0701）",null,"报名邮箱：2085447703@qq.com\n报名电话：0431-85751804","0431-88787036"]
[6,"市直","长春市教育局","长春师范高等专科学校","计算机教师","初级专业技术岗位","财政拨款",1,"不限","硕士研究生及以上学历","与报名学历相对应的学位","研究生专业为：计算机科学与技术(一级学科)（0775、0812）、现代教育技术（专业学位）（045114）",null,"报名邮箱：ccszrsc@163.com\n报名电话：13756814897","0431-88787036"]
[7,"市直","长春市教育局","长春师范高等专科学校","思政教师","初级专业技术岗位","财政拨款",1,"不限","硕士研究生及以上学历","与报名学历相对应的学位","研究生专业为：政治学（一级学科0302）、马克思主义理论（一级学科0305）","中共党员(包括中共预备党员)","报名邮箱：ccszrsc@163.com\n报名电话：13756814897","0431-88787036"]
[8,"市直","长春市教育局","长春职业技术学校","语文教师","初级专业技术岗位","财政拨款",2,"不限","本科学历或硕士研究生及以上学历","与报名学历相对应的学位","研究生专业为：中国语言文学(一级学科)（0501）、学科教学(语文)(专业学位)（045103）、课程与教学论(语文方向)（040102）\n本科专业为：中国语言文学类(一级学科)（0501）","须在2025年7月31日前取得相应的教师资格证（在2025年7月31日前已经通过相应教师资格证笔试和面试考试未进行认定的，须在办理聘用备案手续前取得相应的教师资格证）","报名邮箱：191180600@qq.com\n报名电话：13159611928","0431-88787036"]
[9,"市直","长春市教育局","长春职业技术学校","英语教师","初级专业技术岗位","财政拨款",1,"不限","本科学历或硕士研究生及以上学历","与报名学历相对应的学位","研究生专业为：英语语言文学（050201）、外国语言学及应用语言学(英语方向)（050211）、学科教学(英语)(专业学位)（045108）\n本科专业为：英语（050201）、商务英语（050262）","须在2025年7月31日前取得相应的教师资格证（在2025年7月31日前已经通过相应教师资格证笔试和面试考试未进行认定的，须在办理聘用备案手续前取得相应的教师资格证）","报名邮箱：191180600@qq.com\n报名电话：13159611928","0431-88787036"]
[10,"市直","长春市教育局","长春市第九中学","高中语文教师","初级专业技术岗位","财政拨款",1,"不限","本科学历或硕士研究生及以上学历","与报名学历相对应的学位","研究生专业为：中国语言文学(一级学科)（0501）、学科教学(语文)(专业学位)（045103）、课程与教学论(语文方向)（040102）\n本科专业为：中国语言文学类(一级学科)（0501）","须在2025年7月31日前取得相应的教师资格证（在2025年7月31日前已经通过相应教师资格证笔试和面试考试未进行认定的，须在办理聘用备案手续前取得相应的教师资格证）","报名邮箱：799648901@qq.com\n报名电话：0431-81133958、18166868273","0431-88787036"]
[11,"市直","长春市教育局","长春市第十六中学","高中数学教师","初级专业技术岗位","财政拨款",1,"不限","本科学历或硕士研究生及以上学历","与报名学历相对应的学位","研究生专业为：数学(一级学科)（0701）、学科教学(数学)(专业学位)（045104）、课程与教学论(数学方向)（040102）\n本科专业为：数学类(一级学科)（0701）","须在2025年7月31日前取得相应的教师资格证（在2025年7月31日前已经通过相应教师资格证笔试和面试考试未进行认定的，须在办理聘用备案手续前取得相应的教师资格证）","报名邮箱：jinyt119@163.com\n报名电话：17386854860、13904326620","0431-88787036"]
[12,"市直","长春市教育局","长春市特殊教育学校","数学教师","初级专业技术岗位","财政拨款",1,"不限","本科学历或硕士研究生及以上学历","与报名学历相对应的学位","研究生专业为：数学(一级学科)（0701）、课程与教学论(数学方向)（040102）、学科教学(数学)(专业学位)（045104）\n本科专业为：数学类(一级学科)（0701）","须在2025年7月31日前取得高中及以上相应的教师资格证（在2025年7月31日前已经通过相应教师资格证笔试和面试考试未进行认定的，须在办理聘用备案手续前取得相应的教师资格证）","报名邮箱：583146588@qq.com\n报名电话：13756144043","0431-88787036"]
[13,"市直","长春市教育局","长春市第一中等专业学校","数学教师","初级专业技术岗位","财政拨款",1,"不限","本科学历或硕士研究生及以上学历","与报名学历相对应的学位","研究生专业为：数学(一级学科)（0701）、学科教学(数学)(专业学位)（045104）\n本科专业为：数学类(一级学科)（0701）","须在2025年7月31日前取得相应的教师资格证（在2025年7月31日前已经通过相应教师资格证笔试和面试考试未进行认定的，须在办理聘用备案手续前取得相应的教师资格证）","报名邮箱：5886556@qq.com\n报名电话：17604316358","0431-88787036"]
[14,"市直","长春市教育局","长春市第十九中学","高中物理教师","初级专业技术岗位","财政拨款",1,"不限","本科学历或硕士研究生及以上学历","与报名学历相对应的学位","研究生专业为：物理学(一级学科)（0702）、学科教学(物理)(专业学位)（045105）、课程与教学论（物理方向）(040102)\n本科专业为：物理学类(一级学科)（0702）","须在2025年7月31日前取得相应的教师资格证（在2025年7月31日前已经通过相应教师资格证笔试和面试考试未进行认定的，须在办理聘用备案手续前取得相应的教师资格证）","报名邮箱：1584279661@qq.com\n报名电话：17549534873","0431-88787036"]
[15,"市直","长春市教育局","长春市第十中学","高中数学教师","初级专业技术岗位","财政拨款",1,"不限","本科学历或硕士研究生及以上学历","与报名学历相对应的学位","研究生专业为：学科教学(数学)(专业学位)（045104）、数学(一级学科)（0701）\n本科专业为：数学类(一级学科)（0701）","须在2025年7月31日前取得相应的教师资格证（在2025年7月31日前已经通过相应教师资格证笔试和面试考试未进行认定的，须在办理聘用备案手续前取得相应的教师资格证）","报名邮箱：17491733@qq.com\n报名电话：18643189066","0431-88787036"]
[16,"市直","长春市教育局","长春市十一高中","高中语文教师","初级专业技术岗位","财政拨款",1,"不限","本科学历或硕士研究生及以上学历","与报名学历相对应的学位","研究生专业为：中国语言文学(一级学科)（0501）、学科教学(语文)（专业学位）(045103)、课程与教学论(语文方向）（040102)\n本科专业为：中国语言文学类(一级学科）（0501)","须在2025年7月31日前取得相应的教师资格证（在2025年7月31日前已经通过相应教师资格证笔试和面试考试未进行认定的，须在办理聘用备案手续前取得相应的教师资格证）","报名邮箱：393105545@qq.com\n报名电话：0431-87621345","0431-88787036"]
[{"$f":"ROW()-2","v":17},"朝阳区","长春市朝阳区教育局","长春市朝阳区北安小学校","小学体育教师","初级专业技术岗位","财政拨款",1,"不限","本科学历或硕士研究生及以上学历","与报名学历相对应的学位","研究生专业为：体育学（一级学科）（0403）、学科教学(体育)（专业学位）（045112）、体育（一级学科专业学位）（0452）、课程与教学论（体育方向）（040102）\n本科专业为：体育学类（一级学科）（0402）","须在2025年7月31日前取得相应的教师资格证（在2025年7月31日前已经通过相应教师资格证笔试和面试考试未进行认定的，须在办理聘用备案手续前取得相应的教师资格证）","报名邮箱：13387950907@163.com\n报名电话：18404312770（学校）、\n0431-89898118（教育局）","0431-85102036"]
[18,"朝阳区","长春市朝阳区教育局","长春市朝阳区艳春小学","小学语文教师","初级专业技术岗位","财政拨款",2,"不限","本科学历或硕士研究生及以上学历","与报名学历相对应的学位","研究生专业为：中国语言文学（一级学科)(0501）、学科教学（语文）（专业学位）(045103)、国际中文教育（一级学科专业学位）(0453)、课程与教学论（语文方向）(040102）、小学教育（语文）(专业学位)(045115)\n本科专业为：中国语言文学类（一级学科)(0501）、小学教育(040107）","须在2025年7月31日前取得相应的教师资格证（在2025年7月31日前已经通过相应教师资格证笔试和面试考试未进行认定的，须在办理聘用备案手续前取得相应的教师资格证）","报名邮箱：cyycxiaoxue@163.com\n报名电话：17808086896（学校）、\n0431-89898118（教育局）","0431-85102036"]
[19,"朝阳区","长春市朝阳区教育局","长春市朝阳区富锋镇中心小学","小学数学教师","初级专业技术岗位","财政拨款",1,"不限","本科学历或硕士研究生及以上学历","与报名学历相对应的学位","研究生专业为：数学（一级学科)(0701）、统计学（一级学科)(0714）、学科教学（数学）（专业学位)(045104）、课程与教学论（数学方向）(040102） 、小学教育（数学）（专业学位）(045115)\n本科专业为：数学类（一级学科)(0701）、统计学类（一级学科)(0712）、小学教育(040107）","须在2025年7月31日前取得相应的教师资格证（在2025年7月31日前已经通过相应教师资格证笔试和面试考试未进行认定的，须在办理聘用备案手续前取得相应的教师资格证）","报名邮箱：fufengxiaoxue2024@163.com\n报名电话：13578895549（学校）、\n0431-89898118（教育局）","0431-85102036"]
[20,"朝阳区","长春市朝阳区教育局","长春市朝阳区富锋镇中心小学","小学体育教师","初级专业技术岗位","财政拨款",2,"不限","本科学历或硕士研究生及以上学历","与报名学历相对应的学位","研究生专业为：体育学（一级学科）（0403）、学科教学(体育)（专业学位）（045112）、体育（一级学科专业学位）（0452）、课程与教学论（体育方向）（040102）\n本科专业为：体育学类（一级学科）（0402）","须在2025年7月31日前取得相应的教师资格证（在2025年7月31日前已经通过相应教师资格证笔试和面试考试未进行认定的，须在办理聘用备案手续前取得相应的教师资格证）","报名邮箱：fufengxiaoxue2024@163.com\n报名电话：13578895549（学校）、\n0431-89898118（教育局）","0431-85102036"]
[21,"朝阳区","长春市朝阳区教育局","长春市朝阳区乐山镇中心小学校","小学语文教师","初级专业技术岗位","财政拨款",2,"不限","本科学历或硕士研究生及以上学历","与报名学历相对应的学位","研究生专业为：中国语言文学（一级学科)(0501）、学科教学（语文）（专业学位）(045103)、国际中文教育（一级学科专业学位）(0453)、课程与教学论（语文方向）(040102）、小学教育（语文）(专业学位)(045115)\n本科专业为：中国语言文学类（一级学科)(0501）、小学教育(040107）","须在2025年7月31日前取得相应的教师资格证（在2025年7月31日前已经通过相应教师资格证笔试和面试考试未进行认定的，须在办理聘用备案手续前取得相应的教师资格证）","报名邮箱：17604454246@163.com\n报名电话：17604454246（学校）、\n0431-89898118（教育局）","0431-85102036"]
[22,"朝阳区","长春市朝阳区教育局","长春市朝阳区乐山镇中心小学校","小学体育教师","初级专业技术岗位","财政拨款",1,"不限","本科学历或硕士研究生及以上学历","与报名学历相对应的学位","研究生专业为：体育学（一级学科）（0403）、学科教学(体育)（专业学位）（045112）、体育（一级学科专业学位）（0452）、课程与教学论（体育方向）（040102）\n本科专业为：体育学类（一级学科）（0402）","须在2025年7月31日前取得相应的教师资格证（在2025年7月31日前已经通过相应教师资格证笔试和面试考试未进行认定的，须在办理聘用备案手续前取得相应的教师资格证）","报名邮箱：17604454246@163.com\n报名电话：17604454246（学校）、\n0431-89898118（教育局）","0431-85102036"]
[23,"朝阳区","长春市朝阳区教育局","长春市朝阳区乐山镇中心小学校","小学信息技术教师","初级专业技术岗位","财政拨款",1,"不限","本科学历或硕士研究生及以上学历","与报名学历相对应的学位","研究生专业为：计算机科学与技术(一级学科)（0775、0812）、现代教育技术（专业学位）(045114)、教育技术学(040110）、课程与教学论（计算机）(040102）、软件工程（一级学科)(0835）、计算机技术（专业学位）(085404)、软件工程(专业学位)(085405)\n本科专业为：计算机类（一级学科)(0809）、教育技术学(040104）","须在2025年7月31日前取得相应的教师资格证（在2025年7月31日前已经通过相应教师资格证笔试和面试考试未进行认定的，须在办理聘用备案手续前取得相应的教师资格证）","报名邮箱：17604454246@163.com\n报名电话：17604454246（学校）、\n0431-89898118（教育局）","0431-85102036"]
[24,"朝阳区","长春市朝阳区教育局","长春市朝阳区永春镇中心小学校","小学科学教师","初级专业技术岗位","财政拨款",1,"不限","本科学历或硕士研究生及以上学历","与报名学历相对应的学位","研究生专业为：化学(一级学科）（0703)、物理学（一级学科）（0702）、生态学（一级学科）（0713）、生物学（一级学科）（0710）、学科教学(化学)(专业学位)（045106）、学科教学（物理）（专业学位）（045105）、学科教学（生物）（专业学位）（045107）、课程与教学论(化学方向、物理方向、生物方向)（040102）、应用化学（081704）、科学与技术教育(专业学位)（045117）\n本科专业为：化学类(一级学科）（0703)、物理学类（一级学科）（0702）、生物科学类（一级学科）（0710）、科学教育（040102）","须在2025年7月31日前取得相应的教师资格证（在2025年7月31日前已经通过相应教师资格证笔试和面试考试未进行认定的，须在办理聘用备案手续前取得相应的教师资格证）","报名邮箱：yongchun60@163.com\n报名电话：15943055019（学校）、\n0431-89898118（教育局）","0431-85102036"]
[25,"朝阳区","长春市朝阳区教育局","长春市朝阳区永春镇中心小学校","小学英语教师","初级专业技术岗位","财政拨款",1,"不限","本科学历或硕士研究生及以上学历","与报名学历相对应的学位","研究生专业为：英语语言文学(050201）、外国语言学及应用语言学（英语）(050211）、英语笔译（专业学位）(055101)、英语口译（专业学位）(055102)、学科教学（英语）（专业学位）(045108)、课程与教学论（英语方向）(040102）、小学教育(英语)(专业学位)(045115 )\n本科专业为：英语(050201）、翻译(英语方向)(050261）、商务英语(050262）、小学教育(040107）","须在2025年7月31日前取得相应的教师资格证（在2025年7月31日前已经通过相应教师资格证笔试和面试考试未进行认定的，须在办理聘用备案手续前取得相应的教师资格证）","报名邮箱：yongchun60@163.com\n报名电话：15943055019（学校）、\n0431-89898118（教育局）","0431-85102036"]
[26,"朝阳区","长春市朝阳区教育局","长春市朝阳区永春镇中心小学校","小学数学教师","初级专业技术岗位","财政拨款",2,"不限","本科学历或硕士研究生及以上学历","与报名学历相对应的学位","研究生专业为：数学（一级学科)(0701）、统计学（一级学科)(0714）、学科教学（数学）（专业学位)(045104）、课程与教学论（数学方向）(040102） 、小学教育（数学）（专业学位）(045115)\n本科专业为：数学类（一级学科)(0701）、统计学类（一级学科)(0712）、小学教育(040107）","须在2025年7月31日前取得相应的教师资格证（在2025年7月31日前已经通过相应教师资格证笔试和面试考试未进行认定的，须在办理聘用备案手续前取得相应的教师资格证）","报名邮箱：yongchun60@163.com\n报名电话：15943055019（学校）、\n0431-89898118（教育局）","0431-85102036"]
[27,"朝阳区","长春市朝阳区教育局","长春市朝阳区永春镇中心小学校","小学体育教师","初级专业技术岗位","财政拨款",1,"不限","本科学历或硕士研究生及以上学历","与报名学历相对应的学位","研究生专业为：体育学（一级学科）（0403）、学科教学(体育)（专业学位）（045112）、体育（一级学科专业学位）（0452）、课程与教学论（体育方向）（040102）\n本科专业为：体育学类（一级学科）（0402）","须在2025年7月31日前取得相应的教师资格证（在2025年7月31日前已经通过相应教师资格证笔试和面试考试未进行认定的，须在办理聘用备案手续前取得相应的教师资格证）","报名邮箱：yongchun60@163.com\n报名电话：15943055019（学校）、\n0431-89898118（教育局）","0431-85102036"]
[28,"朝阳区","长春市朝阳区教育局","长春市朝阳实验学校","初中历史教师","初级专业技术岗位","财政拨款",1,"不限","本科学历或硕士研究生及以上学历","与报名学历相对应的学位","研究生专业为：考古学（一级学科）（0601）、中国史（一级学科）（0602）、世界史（一级学科）（0603）、学科教学（历史）（专业学位）（045109）、课程与教学论（历史方向）（040102）、博物馆（专业学位)(065100）\n本科专业为：历史学类（一级学科）（0601）","须在2025年7月31日前取得相应的教师资格证（在2025年7月31日前已经通过相应教师资格证笔试和面试考试未进行认定的，须在办理聘用备案手续前取得相应的教师资格证）","报名邮箱：411212253@qq.com\n报名电话：15948756391（学校）、\n0431-89898118（教育局）","0431-85102036"]
[29,"朝阳区","长春市朝阳区教育局","长春市清华实验学校","初中道德与法治教师","初级专业技术岗位","财政拨款",1,"不限","本科学历或硕士研究生及以上学历","与报名学历相对应的学位","研究生专业为：哲学（一级学科）（0101）、政治学（一级学科）（0302）、马克思主义理论（一级学科）（0305）、学科教学（思政）（专业学位）（045102）、课程与教学论（思政方向）（040102）\n本科专业为：哲学类（一级学科）（0101）、政治学类（一级学科）（0302）、马克思主义理论类（一级学科）（0305）","须在2025年7月31日前取得相应的教师资格证（在2025年7月31日前已经通过相应教师资格证笔试和面试考试未进行认定的，须在办理聘用备案手续前取得相应的教师资格证）","报名邮箱：qhsy3174055832@163com\n报名电话：13943061133（学校）、\n0431-89898118（教育局）","0431-85102036"]
[30,"朝阳区","长春市朝阳区教育局","长春市第一一二中学校","初中物理教师","初级专业技术岗位","财政拨款",1,"不限","本科学历或硕士研究生及以上学历","与报名学历相对应的学位","研究生专业为：物理学（一级学科）（0702）、学科教学（物理）（专业学位）（045105）、课程与教学论（物理方向）（040102）\n本科专业为：物理学类（一级学科）（0702）","须在2025年7月31日前取得相应的教师资格证（在2025年7月31日前已经通过相应教师资格证笔试和面试考试未进行认定的，须在办理聘用备案手续前取得相应的教师资格证）","报名邮箱：CC112MiddleSchool@163.com\n报名电话：15543113747（学校）、\n0431-89898118（教育局）","0431-85102036"]
[31,"朝阳区","长春市朝阳区教育局","长春市第一一二中学校","初中英语教师","初级专业技术岗位","财政拨款",1,"不限","本科学历或硕士研究生及以上学历","与报名学历相对应的学位","研究生专业为：英语语言文学(050201）、外国语言学及应用语言学（英语）(050211）、英语笔译（专业学位）(055101)、英语口译（专业学位）(055102)、学科教学（英语）（专业学位）(045108)、课程与教学论（英语方向）(040102）\n本科专业为：英语(050201）、翻译(英语方向)(050261）、商务英语(050262）","须在2025年7月31日前取得相应的教师资格证（在2025年7月31日前已经通过相应教师资格证笔试和面试考试未进行认定的，须在办理聘用备案手续前取得相应的教师资格证）","报名邮箱：CC112MiddleSchool@163.com\n报名电话：15543113747（学校）、\n0431-89898118（教育局）","0431-85102036"]
[{"$f":"ROW()-2","v":32},"南关区","长春市南关区教育局","长春市南关区第四实验学校","小学语文教师","初级专业技术岗位","财政拨款",1,"不限","本科学历或硕士研究生及以上学历","与报名学历相对应的学位","研究生专业为：中国语言文学(一级学科)(0501)、国际中文教育(一级学科专业学位)(0453)、学科教学（语文）(专业学位)(045103)、课程与教学论（语文方向）(040102)、小学教育(专业学位)(045115)\n本科专业为：中国语言文学类(一级学科)(0501)、小学教育(040107）","须在2025年7月31日前取得相应的教师资格证（在2025年7月31日前已经通过相应教师资格证笔试和面试考试未进行认定的，须在办理聘用备案手续前取得相应的教师资格证）","报名邮箱：185187489@qq.com\n报名电话：18043649009","0431-88912802"]
[33,"南关区","长春市南关区教育局","长春市南关区第四实验学校","小学英语教师","初级专业技术岗位","财政拨款",1,"不限","本科学历或硕士研究生及以上学历","与报名学历相对应的学位","研究生专业为：英语语言文学（050201）、外国语言学及应用语言学（英语方向）(050211)、学科教学(英语)(专业学位）（045108)、翻译(英语方向)(一级学科专业学位)(0551)、小学教育（英语）（专业学位)(045115)\n本科专业为：英语(050201）、商务英语(050262）、翻译(050261）、小学教育(040107）","须在2025年7月31日前取得相应的教师资格证（在2025年7月31日前已经通过相应教师资格证笔试和面试考试未进行认定的，须在办理聘用备案手续前取得相应的教师资格证）","报名邮箱：185187489@qq.com\n报名电话：18043649009","0431-88912802"]
[34,"南关区","长春市南关区教育局","长春市南关区华泽学校","小学道法教师","初级专业技术岗位","财政拨款",1,"不限","本科学历或硕士研究生及以上学历","与报名学历相对应的学位","研究生专业为：哲学（一级学科)(0101）、政治学（一级学科)(0302）、思想政治教育(030505）、学科教学（思政）（专业学位)(045102）、课程与教学论(040102)\n本科专业为：哲学类（一级学科)(0101）、政治学类（一级学科)(0302）、思想政治教育(030503）、小学教育(040107）、马克思主义理论类(一级学科)(0305)","须在2025年7月31日前取得相应的教师资格证（在2025年7月31日前已经通过相应教师资格证笔试和面试考试未进行认定的，须在办理聘用备案手续前取得相应的教师资格证）","报名邮箱：419916469@qq.com\n报名电话：18943971278","0431-88912802"]
[35,"南关区","长春市南关区教育局","长春市南关区华泽学校","初中心理教师","初级专业技术岗位","财政拨款",1,"不限","本科学历或硕士研究生及以上学历","与报名学历相对应的学位","研究生专业为：心理学(一级学科）（0402)、心理健康教育(专业学位）（045116)、应用心理(一级学科专业学位）(0454)\n本科专业为：心理学类(一级学科）（0711)","须在2025年7月31日前取得相应的教师资格证（在2025年7月31日前已经通过相应教师资格证笔试和面试考试未进行认定的，须在办理聘用备案手续前取得相应的教师资格证）","报名邮箱：419916469@qq.com\n报名电话：18943971278","0431-88912802"]
[36,"南关区","长春市南关区教育局","长春市南关区十一高中南溪学校","初中政治教师","初级专业技术岗位","财政拨款",1,"不限","本科学历或硕士研究生及以上学历","与报名学历相对应的学位","研究生专业为：政治学(一级学科)(0302)、马克思主义理论(一级学科)(0305 )、学科教学(思政)(专业学位)(045102)、课程与教学论(思政方向)（040102）\n本科专业为：政治学类(一级学科)(0302)、马克思主义理论类(一级学科)(0305)","须在2025年7月31日前取得相应的教师资格证（在2025年7月31日前已经通过相应教师资格证笔试和面试考试未进行认定的，须在办理聘用备案手续前取得相应的教师资格证）","报名邮箱：2298894380@qq.com\n报名电话：15948075950","0431-88912802"]
[37,"南关区","长春市南关区教育局","长春市南关区十一高中南溪学校","初中历史教师","初级专业技术岗位","财政拨款",1,"不限","本科学历或硕士研究生及以上学历","与报名学历相对应的学位","研究生专业为：中国史(一级学科)(0602)、世界史(一级学科)(0603)、学科教学(历史)(专业学位)(045109)、课程与教学论(历史方向)(040102）\n本科专业为：历史学类(一级学科)(0601)","须在2025年7月31日前取得相应的教师资格证（在2025年7月31日前已经通过相应教师资格证笔试和面试考试未进行认定的，须在办理聘用备案手续前取得相应的教师资格证）","报名邮箱：2298894380@qq.com\n报名电话：15948075950","0431-88912802"]
[38,"南关区","长春市南关区教育局","长春市南关区十一高中南溪学校","初中信息技术教师","初级专业技术岗位","财政拨款",1,"不限","本科学历或硕士研究生及以上学历","与报名学历相对应的学位","研究生专业为：计算机科学与技术(一级学科)(0775、0812)、计算机技术(专业学位)(085404)、现代教育技术(专业学位)(045114)、课程与教学论(信息方向)（040102）\n本科专业为：计算机类(一级学科)(0809)、教育技术学(040104）","须在2025年7月31日前取得相应的教师资格证（在2025年7月31日前已经通过相应教师资格证笔试和面试考试未进行认定的，须在办理聘用备案手续前取得相应的教师资格证）","报名邮箱：2298894380@qq.com\n报名电话：15948075950","0431-88912802"]
[39,"南关区","长春市南关区教育局","吉林省实验繁荣学校","初中数学教师","初级专业技术岗位","财政拨款",1,"不限","本科学历或硕士研究生及以上学历","与报名学历相对应的学位","研究生专业为：数学(一级学科)(0701)、学科教学(数学)(专业学位)(045104)、课程与教学论(数学方向)（040102）\n本科专业为：数学类(一级学科）（0701)","须在2025年7月31日前取得相应的教师资格证（在2025年7月31日前已经通过相应教师资格证笔试和面试考试未进行认定的，须在办理聘用备案手续前取得相应的教师资格证）","报名邮箱：2124646965@qq,com\n报名电话：18004443332","0431-88912802"]
[40,"南关区","长春市南关区教育局","吉林省实验繁荣学校","初中历史教师","初级专业技术岗位","财政拨款",1,"不限","本科学历或硕士研究生及以上学历","与报名学历相对应的学位","研究生专业为：中国史(一级学科)(0602)、世界史(一级学科)(0603)、学科教学(历史)(专业学位)(045109)、课程与教学论(历史方向)(040102）\n本科专业为：历史学类(一级学科)(0601)","须在2025年7月31日前取得相应的教师资格证（在2025年7月31日前已经通过相应教师资格证笔试和面试考试未进行认定的，须在办理聘用备案手续前取得相应的教师资格证）","报名邮箱：2124646965@qq,com\n报名电话：18004443332","0431-88912802"]
[41,"南关区","长春市南关区教育局","长春外国语实验学校","小学数学教师","初级专业技术岗位","财政拨款",2,"不限","本科学历或硕士研究生及以上学历","与报名学历相对应的学位","研究生专业为：数学(一级学科)(0701)、学科教学(数学)(专业学位)(045104)、课程与教学论(数学方向)（040102）、小学教育（数学方向）（专业学位)(045115）\n本科专业为：数学类(一级学科）（0701)、小学教育(040107）","须在2025年7月31日前取得相应的教师资格证（在2025年7月31日前已经通过相应教师资格证笔试和面试考试未进行认定的，须在办理聘用备案手续前取得相应的教师资格证）","报名邮箱：742043130@qq.com\n报名电话：13756914806","0431-88912802"]
[42,"南关区","长春市南关区教育局","长春外国语实验学校","小学体育教师","初级专业技术岗位","财政拨款",1,"不限","本科学历或硕士研究生及以上学历","与报名学历相对应的学位","研究生专业为：体育学（一级学科）（0403）、学科教学（体育)(专业学位）（045112)、体育(一级学科专业学位）（0452）、课程与教学论(体育方向)（040102）\n本科专业为：体育学类（一级学科专业学位）（0402）","须在2025年7月31日前取得相应的教师资格证（在2025年7月31日前已经通过相应教师资格证笔试和面试考试未进行认定的，须在办理聘用备案手续前取得相应的教师资格证）","报名邮箱：742043130@qq.com\n报名电话：13756914806","0431-88912802"]
[43,"南关区","长春市南关区教育局","长春市南关区第三实验学校","小学体育教师","初级专业技术岗位","财政拨款",1,"不限","本科学历或硕士研究生及以上学历","与报名学历相对应的学位","研究生专业为：体育学（一级学科）（0403）、学科教学（体育)(专业学位）（045112)、体育(一级学科专业学位）（0452）、课程与教学论(体育方向)（040102）\n本科专业为：体育学类（一级学科专业学位）（0402）","须在2025年7月31日前取得相应的教师资格证（在2025年7月31日前已经通过相应教师资格证笔试和面试考试未进行认定的，须在办理聘用备案手续前取得相应的教师资格证）","报名邮箱：404310515@qq.com\n报名电话：13844822175","0431-88912802"]
[44,"二道区","长春市二道区教育局","长春市二道区长江学校","小学语文教师","初级专业技术岗位","财政拨款",1,"不限","本科学历或硕士研究生及以上学历","与报名学历相对应的学位","研究生专业为：中国语言文学(一级学科)0501、汉语国际教育(专业学位一级学科)0453、学科教学(语文)(专业学位)045103、课程与教学论(语文方向)040102、小学教育（语文）(专业学位)045115\n本科专业为：中国语言文学类(一级学科)0501、小学教育040107","须在2025年7月31日前取得相应的教师资格证（在2025年7月31日前已经通过相应教师资格证笔试和面试考试未进行认定的，须在办理聘用备案手续前取得相应的教师资格证）","报名邮箱：504895474@qq.com\n报名电话：0431-84941448","0431-89680355"]
[45,"二道区","长春市二道区教育局","长春市二道区长江学校","小学数学教师","初级专业技术岗位","财政拨款",1,"不限","本科学历或硕士研究生及以上学历","与报名学历相对应的学位","研究生专业为：数学(一级学科)0701、课程与教学论(数学方向)040102、小学教育(数学)(专业学位)045115、学科教学(数学)(专业学位)045104\n本科专业为：数学类(一级学科)0701、小学教育040107","须在2025年7月31日前取得相应的教师资格证（在2025年7月31日前已经通过相应教师资格证笔试和面试考试未进行认定的，须在办理聘用备案手续前取得相应的教师资格证）","报名邮箱：504895474@qq.com\n报名电话：0431-84941448","0431-89680355"]
[46,"二道区","长春市二道区教育局","长春市二道区长江学校","小学体育教师","初级专业技术岗位","财政拨款",2,"不限","本科学历或硕士研究生及以上学历","与报名学历相对应的学位","研究生专业为：学科教学(体育)(专业学位)045112、体育学(一级学科)0403、体育(专业学位一级学科)0452、课程与教学论(体育方向)040102\n本科专业为：体育教育040201、运动训练040202K、社会体育指导与管理040203、武术与民族传统体育040204K、运动人体科学040205、运动康复040206T、休闲体育040207T","须在2025年7月31日前取得相应的教师资格证（在2025年7月31日前已经通过相应教师资格证笔试和面试考试未进行认定的，须在办理聘用备案手续前取得相应的教师资格证）","报名邮箱：504895474@qq.com\n报名电话：0431-84941448","0431-89680355"]
[47,"二道区","长春市二道区教育局","长春市第五十七中学校","初中历史教师","初级专业技术岗位","财政拨款",1,"不限","本科学历或硕士研究生及以上学历","与报名学历相对应的学位","研究生专业为：中国史(一级学科)0602、世界史(一级学科)0603、学科教学(历史)(专业学位)045109、课程与教学论(历史方向)040102\n本科专业为：历史学类(一级学科)0601","须在2025年7月31日前取得相应的教师资格证（在2025年7月31日前已经通过相应教师资格证笔试和面试考试未进行认定的，须在办理聘用备案手续前取得相应的教师资格证）","报名邮箱：504895474@qq.com\n报名电话：0431-84941448","0431-89680355"]
[48,"绿园区","长春市绿园区教育局","长春市第八十九中学","初中语文教师","初级专业技术岗位","财政拨款",1,"不限","本科学历或硕士研究生及以上学历","与报名学历相对应的学位","研究生专业为：中国语言文学（一级学科）（0501）、学科教学（语文）（专业学位）（045103）、课程与教学论（语文方向）（040102）、国际中文教育（一级学科专业学位）（0453）\n本科专业为：中国语言文学类（一级学科）（0501）","须在2025年7月31日前取得相应的教师资格证（在2025年7月31日前已经通过相应教师资格证笔试和面试考试未进行认定的，须在办理聘用备案手续前取得相应的教师资格证）","报名邮箱：9125378@qq.com\n报名电话：0431-81178856","0431-87605043"]
[{"$f":"ROW()-2","v":49},"绿园区","长春市绿园区教育局","长春市第八十七中学东校","初中体育教师","初级专业技术岗位","财政拨款",1,"不限","本科学历或硕士研究生及以上学历","与报名学历相对应的学位","研究生专业为：体育学（一级学科）（0403）、学科教学（体育）（专业学位）（045112）、课程与教学论（体育方向）（040102）、体育（一级学科专业学位）（0452）               \n本科专业为：体育学类（一级学科）（0402）","须在2025年7月31日前取得相应的教师资格证（在2025年7月31日前已经通过相应教师资格证笔试和面试考试未进行认定的，须在办理聘用备案手续前取得相应的教师资格证）","报名邮箱：9125378@qq.com\n报名电话：0431-81178856","0431-87605043"]
[50,"绿园区","长春市绿园区教育局","长春市第二十八中学校","初中语文教师","初级专业技术岗位","财政拨款",1,"不限","本科学历或硕士研究生及以上学历","与报名学历相对应的学位","研究生专业为：中国语言文学（一级学科）（0501）、学科教学（语文）（专业学位）（045103）、课程与教学论（语文方向）（040102）、国际中文教育（一级学科专业学位）（0453）\n本科专业为：中国语言文学类（一级学科）（0501）","须在2025年7月31日前取得相应的教师资格证（在2025年7月31日前已经通过相应教师资格证笔试和面试考试未进行认定的，须在办理聘用备案手续前取得相应的教师资格证）","报名邮箱：9125378@qq.com\n报名电话：0431-81178856","0431-87605043"]
[51,"绿园区","长春市绿园区教育局","长春市第二十八中学校","初中英语教师","初级专业技术岗位","财政拨款",2,"不限","本科学历或硕士研究生及以上学历","与报名学历相对应的学位","研究生专业为：英语语言文学（050201）、学科教学（英语）（专业学位）（045108）、课程与教学论（英语方向）（040102）、英语笔译（专业学位）（055101）、英语口译（专业学位）（055102）\n本科专业为：英语（050201）、商务英语（050262）、翻译（英语方向）（050261）","须在2025年7月31日前取得相应的教师资格证（在2025年7月31日前已经通过相应教师资格证笔试和面试考试未进行认定的，须在办理聘用备案手续前取得相应的教师资格证）","报名邮箱：9125378@qq.com\n报名电话：0431-81178856","0431-87605043"]
[52,"绿园区","长春市绿园区教育局","长春市第二十八中学校","初中历史教师","初级专业技术岗位","财政拨款",2,"不限","本科学历或硕士研究生及以上学历","与报名学历相对应的学位","研究生专业为：中国史（一级学科）（0602）、世界史（一级学科）（0603）、学科教学（历史）（专业学位）（045109）、课程与教学论（历史方向）（040102）\n本科专业为：历史学类（一级学科）（0601）","须在2025年7月31日前取得相应的教师资格证（在2025年7月31日前已经通过相应教师资格证笔试和面试考试未进行认定的，须在办理聘用备案手续前取得相应的教师资格证）","报名邮箱：9125378@qq.com\n报名电话：0431-81178856","0431-87605043"]
[53,"绿园区","长春市绿园区教育局","长春市第一二六中学","初中美术教师","初级专业技术岗位","财政拨款",1,"不限","本科学历或硕士研究生及以上学历","与报名学历相对应的学位","研究生专业为：艺术学（一级学科）（美术方向）（1301）、学科教学（美术）（专业学位）（045113）、课程与教学论（美术方向）（040102）、美术与书法（专业学位）（1356）          \n本科专业为：美术学类（一级学科）（1304）","须在2025年7月31日前取得相应的教师资格证（在2025年7月31日前已经通过相应教师资格证笔试和面试考试未进行认定的，须在办理聘用备案手续前取得相应的教师资格证）","报名邮箱：9125378@qq.com\n报名电话：0431-81178856","0431-87605043"]
[54,"绿园区","长春市绿园区教育局","长春市第一二六中学","初中物理教师","初级专业技术岗位","财政拨款",1,"不限","本科学历或硕士研究生及以上学历","与报名学历相对应的学位","研究生专业为：物理学（一级学科 ）（0702）、学科教学（物理）（专业学位）（045105）、课程与教学论（物理方向）（040102）\n本科专业为：物理学类（一级学科）（0702）","须在2025年7月31日前取得相应的教师资格证（在2025年7月31日前已经通过相应教师资格证笔试和面试考试未进行认定的，须在办理聘用备案手续前取得相应的教师资格证）","报名邮箱：9125378@qq.com\n报名电话：0431-81178856","0431-87605043"]
[55,"绿园区","长春市绿园区教育局","长春市第一二六中学","初中语文教师","初级专业技术岗位","财政拨款",1,"不限","本科学历或硕士研究生及以上学历","与报名学历相对应的学位","研究生专业为：中国语言文学（一级学科）（0501）、学科教学（语文）（专业学位）（045103）、课程与教学论（语文方向）（040102）、国际中文教育（一级学科专业学位）（0453）\n本科专业为：中国语言文学类（一级学科）（0501）","须在2025年7月31日前取得相应的教师资格证（在2025年7月31日前已经通过相应教师资格证笔试和面试考试未进行认定的，须在办理聘用备案手续前取得相应的教师资格证）","报名邮箱：9125378@qq.com\n报名电话：0431-81178856","0431-87605043"]
[56,"绿园区","长春市绿园区教育局","长春市绿园区双丰小学校","小学科学教师","初级专业技术岗位","财政拨款",1,"不限","本科学历或硕士研究生及以上学历","与报名学历相对应的学位","研究生专业为：化学（一级学科）（0703）、物理学（一级学科）（0702）、生物学（一级学科）（0710）、学科教学（化学）（专业学位）（045106）、课程与教学论（化学方向、物理方向、生物方向）（040102）、学科教学（物理）（专业学位）（045105）、学科教学（生物）（专业学位）（045107）、科学与技术教育（专业学位）（045117）\n本科专业为：化学类（一级学科）（0703）、物理学类（一级学科）（0702）、生物科学类（一级学科）（0710）、科学教育（040102）","须在2025年7月31日前取得相应的教师资格证（在2025年7月31日前已经通过相应教师资格证笔试和面试考试未进行认定的，须在办理聘用备案手续前取得相应的教师资格证）","报名邮箱：9125378@qq.com\n报名电话：0431-81178856","0431-87605043"]
[57,"绿园区","长春市绿园区教育局","长春市绿园区双丰小学校","小学体育教师","初级专业技术岗位","财政拨款",1,"不限","本科学历或硕士研究生及以上学历","与报名学历相对应的学位","研究生专业为：体育学（一级学科）（0403）、学科教学（体育）（专业学位）（045112）、课程与教学论（体育方向）（040102）、体育（一级学科专业学位）（0452）               \n本科专业为：体育学类（一级学科）（0402）","须在2025年7月31日前取得相应的教师资格证（在2025年7月31日前已经通过相应教师资格证笔试和面试考试未进行认定的，须在办理聘用备案手续前取得相应的教师资格证）","报名邮箱：9125378@qq.com\n报名电话：0431-81178856","0431-87605043"]
[58,"绿园区","长春市绿园区教育局","长春市绿园区双丰小学校","小学英语教师","初级专业技术岗位","财政拨款",2,"不限","本科学历或硕士研究生及以上学历","与报名学历相对应的学位","研究生专业为：英语语言文学（050201）、学科教学（英语）（专业学位）（045108）、课程与教学论（英语方向）（040102）、英语笔译（专业学位）（055101）、英语口译（专业学位）（055102）、小学教育（英语方向）（专业学位）（045115）\n本科专业为：英语（050201）、商务英语（050262）、翻译（英语方向）（050261）、小学教育（英语方向）（040107）","须在2025年7月31日前取得相应的教师资格证（在2025年7月31日前已经通过相应教师资格证笔试和面试考试未进行认定的，须在办理聘用备案手续前取得相应的教师资格证）","报名邮箱：9125378@qq.com\n报名电话：0431-81178856","0431-87605043"]
[{"$f":"ROW()-2","v":59},"绿园区","长春市绿园区教育局","长春市绿园区双丰小学校","小学语文教师","初级专业技术岗位","财政拨款",1,"不限","本科学历或硕士研究生及以上学历","与报名学历相对应的学位","研究生专业为：中国语言文学（一级学科）（0501）、学科教学（语文）（专业学位）（045103）、课程与教学论（语文方向）（040102）、国际中文教育（一级学科专业学位）（0453）、小学教育（语文方向）（专业学位）（045115）\n本科专业为：中国语言文学类（一级学科）（0501）、小学教育（语文方向）（040107）","须在2025年7月31日前取得相应的教师资格证（在2025年7月31日前已经通过相应教师资格证笔试和面试考试未进行认定的，须在办理聘用备案手续前取得相应的教师资格证）","报名邮箱：9125378@qq.com\n报名电话：0431-81178856","0431-87605043"]
[60,"绿园区","长春市绿园区教育局","长春市绿园区双丰小学校（同心小学）","小学美术教师","初级专业技术岗位","财政拨款",1,"不限","本科学历或硕士研究生及以上学历","与报名学历相对应的学位","研究生专业为：艺术学（一级学科）（美术方向）（1301）、学科教学（美术）（专业学位）（045113）、课程与教学论（美术方向）（040102）、美术与书法（专业学位）（1356）          \n本科专业为：美术学类（一级学科）（1304）","须在2025年7月31日前取得相应的教师资格证（在2025年7月31日前已经通过相应教师资格证笔试和面试考试未进行认定的，须在办理聘用备案手续前取得相应的教师资格证）","报名邮箱：9125378@qq.com\n报名电话：0431-81178856","0431-87605043"]
[61,"宽城区","长春市宽城区教育局","长春市第七十二中学","初中语文教师","初级专业技术岗位","财政拨款",1,"不限","本科学历或硕士研究生及以上学历","与报名学历相对应的学位","研究生专业为：中国语言文学(一级学科)(0501)，学科教学(语文)(专业学位)(045103)；\n本科专业为：中国语言文学类(一级学科)(0501)","须在2025年7月31日前取得相应的教师资格证（在2025年7月31日前已经通过相应教师资格证笔试和面试考试未进行认定的，须在办理聘用备案手续前取得相应的教师资格证）","报名邮箱：kcqsjh2023@163.com\n报名电话：0431-89990233","0431-89990296"]
[62,"宽城区","长春市宽城区教育局","长春市第七十二中学","初中数学教师","初级专业技术岗位","财政拨款",3,"不限","本科学历或硕士研究生及以上学历","与报名学历相对应的学位","研究生专业为：数学(一级学科)(0701)，学科教学(数学)(专业学位)(045104)；\n本科专业为：数学类(一级学科)(0701)","须在2025年7月31日前取得相应的教师资格证（在2025年7月31日前已经通过相应教师资格证笔试和面试考试未进行认定的，须在办理聘用备案手续前取得相应的教师资格证）","报名邮箱：kcqsjh2023@163.com\n报名电话：0431-89990233","0431-89990296"]
[63,"宽城区","长春市宽城区教育局","长春市第七十二中学","初中化学教师","初级专业技术岗位","财政拨款",1,"不限","本科学历或硕士研究生及以上学历","与报名学历相对应的学位","研究生专业为：化学(一级学科)(0703)、学科教学(化学)(专业学位)(045106)；\n本科专业为：化学类(一级学科)(0703)","须在2025年7月31日前取得相应的教师资格证（在2025年7月31日前已经通过相应教师资格证笔试和面试考试未进行认定的，须在办理聘用备案手续前取得相应的教师资格证）","报名邮箱：kcqsjh2023@163.com\n报名电话：0431-89990233","0431-89990296"]
[64,"宽城区","长春市宽城区教育局","长春市第七十二中学","初中生物教师","初级专业技术岗位","财政拨款",1,"不限","本科学历或硕士研究生及以上学历","与报名学历相对应的学位","研究生专业为：生物学(一级学科)(0710)，学科教学(生物)(专业学位)(045107)；\n本科专业为：生物科学类(一级学科)(0710)","须在2025年7月31日前取得相应的教师资格证（在2025年7月31日前已经通过相应教师资格证笔试和面试考试未进行认定的，须在办理聘用备案手续前取得相应的教师资格证）","报名邮箱：kcqsjh2023@163.com\n报名电话：0431-89990233","0431-89990296"]
[65,"宽城区","长春市宽城区教育局","长春市第七十二中学","初中历史教师","初级专业技术岗位","财政拨款",1,"不限","本科学历或硕士研究生及以上学历","与报名学历相对应的学位","研究生专业为：中国史(一级学科)(0602)，世界史(一级学科)(0603)，学科教学(历史)(专业学位)(045109)；\n本科专业为：历史学类(一级学科)(0601)","须在2025年7月31日前取得相应的教师资格证（在2025年7月31日前已经通过相应教师资格证笔试和面试考试未进行认定的，须在办理聘用备案手续前取得相应的教师资格证）","报名邮箱：kcqsjh2023@163.com\n报名电话：0431-89990233","0431-89990296"]
[66,"宽城区","长春市宽城区教育局","长春市第七十二中学","初中体育教师","初级专业技术岗位","财政拨款",1,"不限","本科学历或硕士研究生及以上学历","与报名学历相对应的学位","研究生专业为：体育学(一级学科)(0403)，学科教学(体育)(专业学位)(045112)，体育(一级学科，专业学位)(0452)；\n本科专业为：体育学类(一级学科)(0402)","须在2025年7月31日前取得相应的教师资格证（在2025年7月31日前已经通过相应教师资格证笔试和面试考试未进行认定的，须在办理聘用备案手续前取得相应的教师资格证）","报名邮箱：kcqsjh2023@163.com\n报名电话：0431-89990233","0431-89990296"]
[67,"宽城区","长春市宽城区教育局","长春市第七十二中学","小学语文教师","初级专业技术岗位","财政拨款",2,"不限","本科学历或硕士研究生及以上学历","与报名学历相对应的学位","研究生专业为：中国语言文学(一级学科)(0501)，学科教学(语文)(专业学位)(045103)，小学教育(专业学位)(045115)；\n本科专业为：中国语言文学类(一级学科)(0501)，小学教育(040107)","须在2025年7月31日前取得相应的教师资格证（在2025年7月31日前已经通过相应教师资格证笔试和面试考试未进行认定的，须在办理聘用备案手续前取得相应的教师资格证）","报名邮箱：kcqsjh2023@163.com\n报名电话：0431-89990233","0431-89990296"]
[68,"宽城区","长春市宽城区教育局","长春市第七十二中学","小学数学教师","初级专业技术岗位","财政拨款",1,"不限","本科学历或硕士研究生及以上学历","与报名学历相对应的学位","研究生专业为：数学(一级学科)(0701)，学科教学(数学)(专业学位)(045104)，小学教育(专业学位)(045115)；\n本科专业为：数学类(一级学科)(0701)，小学教育(040107)","须在2025年7月31日前取得相应的教师资格证（在2025年7月31日前已经通过相应教师资格证笔试和面试考试未进行认定的，须在办理聘用备案手续前取得相应的教师资格证）","报名邮箱：kcqsjh2023@163.com\n报名电话：0431-89990233","0431-89990296"]
[{"$f":"ROW()-2","v":69},"宽城区","长春市宽城区教育局","长春市第一〇六中学","初中历史教师","初级专业技术岗位","财政拨款",1,"不限","本科学历或硕士研究生及以上学历","与报名学历相对应的学位","研究生专业为：中国史(一级学科)(0602)，世界史(一级学科)(0603)，学科教学(历史)(专业学位)(045109)；\n本科专业为：历史学类(一级学科)(0601)","须在2025年7月31日前取得相应的教师资格证（在2025年7月31日前已经通过相应教师资格证笔试和面试考试未进行认定的，须在办理聘用备案手续前取得相应的教师资格证）","报名邮箱：kcqsjh2023@163.com\n报名电话：0431-89990233","0431-89990296"]
[70,"宽城区","长春市宽城区教育局","长春市宽城区第三实验小学","小学语文教师","初级专业技术岗位","财政拨款",1,"不限","本科学历或硕士研究生及以上学历","与报名学历相对应的学位","研究生专业为：中国语言文学(一级学科)(0501)，学科教学(语文)(专业学位)(045103)，小学教育(专业学位)(045115)；\n本科专业为：中国语言文学类(一级学科)(0501)，小学教育(040107)","须在2025年7月31日前取得相应的教师资格证（在2025年7月31日前已经通过相应教师资格证笔试和面试考试未进行认定的，须在办理聘用备案手续前取得相应的教师资格证）","报名邮箱：kcqsjh2023@163.com\n报名电话：0431-89990233","0431-89990296"]
[71,"宽城区","长春市宽城区教育局","长春市宽城区第三实验小学","小学数学教师","初级专业技术岗位","财政拨款",1,"不限","本科学历或硕士研究生及以上学历","与报名学历相对应的学位","研究生专业为：数学(一级学科)(0701)，学科教学(数学)(专业学位)(045104)，小学教育(专业学位)(045115)；\n本科专业为：数学类(一级学科)(0701)，小学教育(040107)","须在2025年7月31日前取得相应的教师资格证（在2025年7月31日前已经通过相应教师资格证笔试和面试考试未进行认定的，须在办理聘用备案手续前取得相应的教师资格证）","报名邮箱：kcqsjh2023@163.com\n报名电话：0431-89990233","0431-89990296"]
[72,"宽城区","长春市宽城区教育局","长春市宽城区蓝田小学","小学体育教师","初级专业技术岗位","财政拨款",1,"不限","本科学历或硕士研究生及以上学历","与报名学历相对应的学位","研究生专业为：体育学(一级学科)(0403)，学科教学(体育)(专业学位)(045112)，体育(一级学科，专业学位)(0452)；\n本科专业为：体育学类(一级学科)(0402)","须在2025年7月31日前取得相应的教师资格证（在2025年7月31日前已经通过相应教师资格证笔试和面试考试未进行认定的，须在办理聘用备案手续前取得相应的教师资格证）","报名邮箱：kcqsjh2023@163.com\n报名电话：0431-89990233","0431-89990296"]
[73,"宽城区","长春市宽城区教育局","长春市蓝田中学","初中语文教师","初级专业技术岗位","财政拨款",4,"不限","本科学历或硕士研究生及以上学历","与报名学历相对应的学位","研究生专业为：中国语言文学(一级学科)(0501)，学科教学(语文)(专业学位)(045103)；\n本科专业为：中国语言文学类(一级学科)(0501)","须在2025年7月31日前取得相应的教师资格证（在2025年7月31日前已经通过相应教师资格证笔试和面试考试未进行认定的，须在办理聘用备案手续前取得相应的教师资格证）","报名邮箱：kcqsjh2023@163.com\n报名电话：0431-89990233","0431-89990296"]
[74,"宽城区","长春市宽城区教育局","长春市蓝田中学","初中数学教师","初级专业技术岗位","财政拨款",4,"不限","本科学历或硕士研究生及以上学历","与报名学历相对应的学位","研究生专业为：数学(一级学科)(0701)，学科教学(数学)(专业学位)(045104)；\n本科专业为：数学类(一级学科)(0701)","须在2025年7月31日前取得相应的教师资格证（在2025年7月31日前已经通过相应教师资格证笔试和面试考试未进行认定的，须在办理聘用备案手续前取得相应的教师资格证）","报名邮箱：kcqsjh2023@163.com\n报名电话：0431-89990233","0431-89990296"]
[75,"宽城区","长春市宽城区教育局","长春市蓝田中学","初中英语教师","初级专业技术岗位","财政拨款",2,"不限","本科学历或硕士研究生及以上学历","与报名学历相对应的学位","研究生专业为：英语语言文学(050201)，英语笔译(专业学位)(055101)，英语口译(专业学位)(055102)，学科教学(英语)(专业学位)(045108)；\n本科专业为：英语(050201)","须在2025年7月31日前取得相应的教师资格证（在2025年7月31日前已经通过相应教师资格证笔试和面试考试未进行认定的，须在办理聘用备案手续前取得相应的教师资格证）","报名邮箱：kcqsjh2023@163.com\n报名电话：0431-89990233","0431-89990296"]
[76,"宽城区","长春市宽城区教育局","长春市蓝田中学","初中道法教师","初级专业技术岗位","财政拨款",1,"不限","本科学历或硕士研究生及以上学历","与报名学历相对应的学位","研究生专业为：政治学(一级学科)(0302)，马克思主义理论(一级学科)(0305)，学科教学(思政)(专业学位)(045102)；\n本科专业为：政治学类(一级学科)(0302)，马克思主义理论类(一级学科)(0305)","须在2025年7月31日前取得相应的教师资格证（在2025年7月31日前已经通过相应教师资格证笔试和面试考试未进行认定的，须在办理聘用备案手续前取得相应的教师资格证）","报名邮箱：kcqsjh2023@163.com\n报名电话：0431-89990233","0431-89990296"]
[77,"宽城区","长春市宽城区教育局","长春市蓝田中学","初中历史教师","初级专业技术岗位","财政拨款",1,"不限","本科学历或硕士研究生及以上学历","与报名学历相对应的学位","研究生专业为：中国史(一级学科)(0602)，世界史(一级学科)(0603)，学科教学(历史)(专业学位)(045109)；\n本科专业为：历史学类(一级学科)(0601)","须在2025年7月31日前取得相应的教师资格证（在2025年7月31日前已经通过相应教师资格证笔试和面试考试未进行认定的，须在办理聘用备案手续前取得相应的教师资格证）","报名邮箱：kcqsjh2023@163.com\n报名电话：0431-89990233","0431-89990296"]
[78,"宽城区","长春市宽城区教育局","长春市蓝田中学","初中地理教师","初级专业技术岗位","财政拨款",1,"不限","本科学历或硕士研究生及以上学历","与报名学历相对应的学位","研究生专业为：地理学(一级学科)(0705)，学科教学(地理)(专业学位)(045110)；\n本科专业为：地理科学类(一级学科)(0705)","须在2025年7月31日前取得相应的教师资格证（在2025年7月31日前已经通过相应教师资格证笔试和面试考试未进行认定的，须在办理聘用备案手续前取得相应的教师资格证）","报名邮箱：kcqsjh2023@163.com\n报名电话：0431-89990233","0431-89990296"]
[{"$f":"ROW()-2","v":79},"宽城区","长春市宽城区教育局","长春市蓝田中学","初中体育教师","初级专业技术岗位","财政拨款",1,"不限","本科学历或硕士研究生及以上学历","与报名学历相对应的学位","研究生专业为：体育学(一级学科)(0403)，学科教学(体育)(专业学位)(045112)，体育(一级学科，专业学位)(0452)；\n本科专业为：体育学类(一级学科)(0402)","须在2025年7月31日前取得相应的教师资格证（在2025年7月31日前已经通过相应教师资格证笔试和面试考试未进行认定的，须在办理聘用备案手续前取得相应的教师资格证）","报名邮箱：kcqsjh2023@163.com\n报名电话：0431-89990233","0431-89990296"]
[80,"宽城区","长春市宽城区教育局","长春市盛华学校","初中语文教师","初级专业技术岗位","财政拨款",1,"不限","本科学历或硕士研究生及以上学历","与报名学历相对应的学位","研究生专业为：中国语言文学(一级学科)(0501)，学科教学(语文)(专业学位)(045103)；\n本科专业为：中国语言文学类(一级学科)(0501)","须在2025年7月31日前取得相应的教师资格证（在2025年7月31日前已经通过相应教师资格证笔试和面试考试未进行认定的，须在办理聘用备案手续前取得相应的教师资格证）","报名邮箱：kcqsjh2023@163.com\n报名电话：0431-89990233","0431-89990296"]
[81,"宽城区","长春市宽城区教育局","长春市盛华学校","初中数学教师","初级专业技术岗位","财政拨款",1,"不限","本科学历或硕士研究生及以上学历","与报名学历相对应的学位","研究生专业为：数学(一级学科)(0701)，学科教学(数学)(专业学位)(045104)；\n本科专业为：数学类(一级学科)(0701)","须在2025年7月31日前取得相应的教师资格证（在2025年7月31日前已经通过相应教师资格证笔试和面试考试未进行认定的，须在办理聘用备案手续前取得相应的教师资格证）","报名邮箱：kcqsjh2023@163.com\n报名电话：0431-89990233","0431-89990296"]
[82,"宽城区","长春市宽城区教育局","长春市盛华学校","初中英语教师","初级专业技术岗位","财政拨款",1,"不限","本科学历或硕士研究生及以上学历","与报名学历相对应的学位","研究生专业为：英语语言文学(050201)，英语笔译(专业学位)(055101)，英语口译(专业学位)(055102)，学科教学(英语)(专业学位)(045108)；\n本科专业为：英语(050201)","须在2025年7月31日前取得相应的教师资格证（在2025年7月31日前已经通过相应教师资格证笔试和面试考试未进行认定的，须在办理聘用备案手续前取得相应的教师资格证）","报名邮箱：kcqsjh2023@163.com\n报名电话：0431-89990233","0431-89990296"]
[83,"宽城区","长春市宽城区教育局","长春市盛华学校","初中道法教师","初级专业技术岗位","财政拨款",1,"不限","本科学历或硕士研究生及以上学历","与报名学历相对应的学位","研究生专业为：政治学(一级学科)(0302)，马克思主义理论(一级学科)(0305)，学科教学(思政)(专业学位)(045102)；\n本科专业为：政治学类(一级学科)(0302)，马克思主义理论类(一级学科)(0305)","须在2025年7月31日前取得相应的教师资格证（在2025年7月31日前已经通过相应教师资格证笔试和面试考试未进行认定的，须在办理聘用备案手续前取得相应的教师资格证）","报名邮箱：kcqsjh2023@163.com\n报名电话：0431-89990233","0431-89990296"]
[84,"宽城区","长春市宽城区教育局","长春市盛华学校","初中历史教师","初级专业技术岗位","财政拨款",1,"不限","本科学历或硕士研究生及以上学历","与报名学历相对应的学位","研究生专业为：中国史(一级学科)(0602)，世界史(一级学科)(0603)，学科教学(历史)(专业学位)(045109)；\n本科专业为：历史学类(一级学科)(0601)","须在2025年7月31日前取得相应的教师资格证（在2025年7月31日前已经通过相应教师资格证笔试和面试考试未进行认定的，须在办理聘用备案手续前取得相应的教师资格证）","报名邮箱：kcqsjh2023@163.com\n报名电话：0431-89990233","0431-89990296"]
[85,"宽城区","长春市宽城区教育局","长春市盛华学校","初中地理教师","初级专业技术岗位","财政拨款",1,"不限","本科学历或硕士研究生及以上学历","与报名学历相对应的学位","研究生专业为：地理学(一级学科)(0705)，学科教学(地理)(专业学位)(045110)；\n本科专业为：地理科学类(一级学科)(0705)","须在2025年7月31日前取得相应的教师资格证（在2025年7月31日前已经通过相应教师资格证笔试和面试考试未进行认定的，须在办理聘用备案手续前取得相应的教师资格证）","报名邮箱：kcqsjh2023@163.com\n报名电话：0431-89990233","0431-89990296"]
[86,"宽城区","长春市宽城区教育局","长春市盛华学校","初中体育教师","初级专业技术岗位","财政拨款",1,"不限","本科学历或硕士研究生及以上学历","与报名学历相对应的学位","研究生专业为：体育学(一级学科)(0403)，学科教学(体育)(专业学位)(045112)，体育(一级学科，专业学位)(0452)；\n本科专业为：体育学类(一级学科)(0402)","须在2025年7月31日前取得相应的教师资格证（在2025年7月31日前已经通过相应教师资格证笔试和面试考试未进行认定的，须在办理聘用备案手续前取得相应的教师资格证）","报名邮箱：kcqsjh2023@163.com\n报名电话：0431-89990233","0431-89990296"]
[87,"宽城区","长春市宽城区教育局","长春市宽城区宋家幼儿园","幼儿园教师","初级专业技术岗位","财政拨款",1,"不限","本科学历或硕士研究生及以上学历","与报名学历相对应的学位","研究生专业为：学前教育学(040105)、学前教育(专业学位)(045118)；\n本科专业为：学前教育(040106)","须在2025年7月31日前取得相应的教师资格证（在2025年7月31日前已经通过相应教师资格证笔试和面试考试未进行认定的，须在办理聘用备案手续前取得相应的教师资格证）","报名邮箱：kcqsjh2023@163.com\n报名电话：0431-89990291","0431-89990296"]
[88,"宽城区","长春市宽城区教育局","长春市宽城区柳影幼儿园","幼儿园教师","初级专业技术岗位","财政拨款",1,"不限","本科学历或硕士研究生及以上学历","与报名学历相对应的学位","研究生专业为：学前教育学(040105)、学前教育(专业学位)(045118)；\n本科专业为：学前教育(040106)","须在2025年7月31日前取得相应的教师资格证（在2025年7月31日前已经通过相应教师资格证笔试和面试考试未进行认定的，须在办理聘用备案手续前取得相应的教师资格证）","报名邮箱：kcqsjh2023@163.com\n报名电话：0431-89990291","0431-89990296"]
[{"$f":"ROW()-2","v":89},"宽城区","长春市宽城区教育局","长春市宽城区第三实验幼儿园","幼儿园教师","初级专业技术岗位","财政拨款",1,"不限","本科学历或硕士研究生及以上学历","与报名学历相对应的学位","研究生专业为：学前教育学(040105)、学前教育(专业学位)(045118)；\n本科专业为：学前教育(040106)","须在2025年7月31日前取得相应的教师资格证（在2025年7月31日前已经通过相应教师资格证笔试和面试考试未进行认定的，须在办理聘用备案手续前取得相应的教师资格证）","报名邮箱：kcqsjh2023@163.com\n报名电话：0431-89990291","0431-89990296"]
[90,"宽城区","长春市宽城区教育局","长春市宽城区泽葵幼儿园","幼儿园教师","初级专业技术岗位","财政拨款",1,"不限","本科学历或硕士研究生及以上学历","与报名学历相对应的学位","研究生专业为：学前教育学(040105)、学前教育(专业学位)(045118)；\n本科专业为：学前教育(040106)","须在2025年7月31日前取得相应的教师资格证（在2025年7月31日前已经通过相应教师资格证笔试和面试考试未进行认定的，须在办理聘用备案手续前取得相应的教师资格证）","报名邮箱：kcqsjh2023@163.com\n报名电话：0431-89990291","0431-89990296"]
[91,"宽城区","长春市宽城区教育局","长春市宽城区北兴幼儿园","幼儿园教师","初级专业技术岗位","财政拨款",1,"不限","本科学历或硕士研究生及以上学历","与报名学历相对应的学位","研究生专业为：学前教育学(040105)、学前教育(专业学位)(045118)；\n本科专业为：学前教育(040106)","须在2025年7月31日前取得相应的教师资格证（在2025年7月31日前已经通过相应教师资格证笔试和面试考试未进行认定的，须在办理聘用备案手续前取得相应的教师资格证）","报名邮箱：kcqsjh2023@163.com\n报名电话：0431-89990291","0431-89990296"]
[92,"九台区","长春市九台区教育局","九台区第一中学","高中语文教师","初级专业技术岗位","财政拨款",2,"不限","本科学历或硕士研究生及以上学历","与报名学历相对应的学位","研究生专业为：中国语言文学（一级学科）（0501）、学科教学（语文）(专业学位)（045103）、课程与教学论（语文方向）（040102）\n本科专业为：中国语言文学类（一级学科）（0501）","须在2025年7月31日前取得相应的教师资格证（在2025年7月31日前已经通过相应教师资格证笔试和面试考试未进行认定的，须在办理聘用备案手续前取得相应的教师资格证）","报名邮箱：jtedurs@163.com\n报名电话：0431-82324039","0431-82323932"]
[93,"九台区","长春市九台区教育局","九台区第一中学","高中数学教师","初级专业技术岗位","财政拨款",1,"不限","本科学历或硕士研究生及以上学历","与报名学历相对应的学位","研究生专业为：数学（一级学科）(0701)、学科教学（数学）(专业学位)(045104)、课程与教学论（数学方向）(040102）\n本科专业为：数学类（一级学科）（0701)","须在2025年7月31日前取得相应的教师资格证（在2025年7月31日前已经通过相应教师资格证笔试和面试考试未进行认定的，须在办理聘用备案手续前取得相应的教师资格证）","报名邮箱：jtedurs@163.com\n报名电话：0431-82324039","0431-82323932"]
[94,"九台区","长春市九台区教育局","九台区第一中学","高中物理教师","初级专业技术岗位","财政拨款",1,"不限","本科学历或硕士研究生及以上学历","与报名学历相对应的学位","研究生专业为：物理学（一级学科）(0702)、学科教学（物理）(专业学位)(045105)、课程与教学论（物理方向）(040102)\n本科专业为：物理学类（一级学科）(0702)","须在2025年7月31日前取得相应的教师资格证（在2025年7月31日前已经通过相应教师资格证笔试和面试考试未进行认定的，须在办理聘用备案手续前取得相应的教师资格证）","报名邮箱：jtedurs@163.com\n报名电话：0431-82324039","0431-82323932"]
[95,"九台区","长春市九台区教育局","九台区实验高中","高中生物教师","初级专业技术岗位","财政拨款",1,"不限","本科学历或硕士研究生及以上学历","与报名学历相对应的学位","研究生专业为：生物学（一级学科）(0710)、学科教学（生物）(专业学位)(045107)、课程与教学论（生物方向）(040102)\n本科专业为：生物科学类（一级学科）(0710)","须在2025年7月31日前取得相应的教师资格证（在2025年7月31日前已经通过相应教师资格证笔试和面试考试未进行认定的，须在办理聘用备案手续前取得相应的教师资格证）","报名邮箱：jtedurs@163.com\n报名电话：0431-82324039","0431-82323932"]
[96,"九台区","长春市九台区教育局","九台区青少年活动中心","初中美术教师","初级专业技术岗位","财政拨款",1,"不限","本科学历或硕士研究生及以上学历","与报名学历相对应的学位","研究生专业为：学科教学(美术)(专业学位)（045113）、课程与教学论（美术方向）（040102）、艺术学（一级学科）（美术方向）（1301）、\n本科专业为：美术学类（一级学科）（1304)、艺术教育(040105)","须在2025年7月31日前取得相应的教师资格证（在2025年7月31日前已经通过相应教师资格证笔试和面试考试未进行认定的，须在办理聘用备案手续前取得相应的教师资格证）","报名邮箱：jtedurs@163.com\n报名电话：0431-82324039","0431-82323932"]
[97,"公主岭市","公主岭市教育局","公主岭市第一中学校","高中数学教师","初级专业技术岗位","财政拨款",2,"不限","硕士研究生及以上学历","与报名学历相对应的学位","研究生专业为：数学（一级学科）（0701 ）、学科教学（数学）(专业学位)（045104）、课程与教学论（数学方向）（040102）","须在2025年7月31日前取得相应的教师资格证（在2025年7月31日前已经通过相应教师资格证笔试和面试考试未进行认定的，须在办理聘用备案手续前取得相应的教师资格证）","报名邮箱：4057411@qq.com\n报名电话：0434-6297509","0434-6297517"]
[98,{"$f":"B99","v":"公主岭市"},"公主岭市教育局","公主岭市第一中学校","高中语文教师","初级专业技术岗位","财政拨款",1,"不限","硕士研究生及以上学历","与报名学历相对应的学位","研究生专业为：中国语言文学（一级学科）（0501）、学科教学（语文）(专业学位)（045103）、课程与教学论（语文方向）（040102）","须在2025年7月31日前取得相应的教师资格证（在2025年7月31日前已经通过相应教师资格证笔试和面试考试未进行认定的，须在办理聘用备案手续前取得相应的教师资格证）","报名邮箱：4057411@qq.com\n报名电话：0434-6297509","0434-6297517"]
[{"$f":"ROW()-2","v":99},"公主岭市","公主岭市教育局","公主岭市第一中学校","高中英语教师","初级专业技术岗位","财政拨款",1,"不限","硕士研究生及以上学历","与报名学历相对应的学位","研究生专业为：英语语言文学(050201)、学科教学（英语）(专业学位)(045108)、英语笔译（专业学位）(055101)、 英语口译（专业学位）(055102)、课程与教学论（英语方向）(040102)","须在2025年7月31日前取得相应的教师资格证（在2025年7月31日前已经通过相应教师资格证笔试和面试考试未进行认定的，须在办理聘用备案手续前取得相应的教师资格证）","报名邮箱：4057411@qq.com\n报名电话：0434-6297509","0434-6297517"]
[100,"公主岭市","公主岭市教育局","公主岭市第一中学校","高中物理教师","初级专业技术岗位","财政拨款",2,"不限","硕士研究生及以上学历","与报名学历相对应的学位","研究生专业为：物理学（一级学科）(0702)、学科教学（物理）(专业学位)(045105)、课程与教学论（物理方向）(040102)","须在2025年7月31日前取得相应的教师资格证（在2025年7月31日前已经通过相应教师资格证笔试和面试考试未进行认定的，须在办理聘用备案手续前取得相应的教师资格证）","报名邮箱：4057411@qq.com\n报名电话：0434-6297509","0434-6297517"]
[101,"公主岭市","公主岭市教育局","公主岭市第三中学校","高中语文教师","初级专业技术岗位","财政拨款",2,"不限","本科学历或硕士研究生及以上学历","与报名学历相对应的学位","研究生专业为：中国语言文学（一级学科）（0501）、学科教学（语文）(专业学位)（045103）、课程与教学论（语文方向）（040102）\n本科专业为：中国语言文学类（一级学科）（0501）","须在2025年7月31日前取得相应的教师资格证（在2025年7月31日前已经通过相应教师资格证笔试和面试考试未进行认定的，须在办理聘用备案手续前取得相应的教师资格证）","报名邮箱：4057411@qq.com\n报名电话：0434-6297509","0434-6297517"]
[102,"公主岭市","公主岭市教育局","公主岭市第三中学校","高中英语教师","初级专业技术岗位","财政拨款",2,"不限","本科学历或硕士研究生及以上学历","与报名学历相对应的学位","研究生专业为：英语语言文学(050201)、学科教学（英语）(专业学位)(045108)、英语笔译（专业学位）(055101)、 英语口译（专业学位）(055102)、课程与教学论（英语方向）(040102)\n本科专业为：英语(050201)","须在2025年7月31日前取得相应的教师资格证（在2025年7月31日前已经通过相应教师资格证笔试和面试考试未进行认定的，须在办理聘用备案手续前取得相应的教师资格证）","报名邮箱：4057411@qq.com\n报名电话：0434-6297509","0434-6297517"]
[103,"公主岭市","公主岭市教育局","公主岭市第六中学校","高中语文教师","初级专业技术岗位","财政拨款",1,"不限","本科学历或硕士研究生及以上学历","与报名学历相对应的学位","研究生专业为：中国语言文学（一级学科）（0501）、学科教学（语文）(专业学位)（045103）、课程与教学论（语文方向）（040102）\n本科专业为：中国语言文学类（一级学科）（0501）","须在2025年7月31日前取得相应的教师资格证（在2025年7月31日前已经通过相应教师资格证笔试和面试考试未进行认定的，须在办理聘用备案手续前取得相应的教师资格证）","报名邮箱：4057411@qq.com\n报名电话：0434-6297509","0434-6297517"]
[104,"公主岭市","公主岭市教育局","公主岭市第六中学校","高中政治教师","初级专业技术岗位","财政拨款",1,"不限","本科学历或硕士研究生及以上学历","与报名学历相对应的学位","研究生专业为：学科教学（思政）(专业学位)（045102）、政治学（一级学科）（0302）、马克思主义理论（一级学科）（0305）、课程与教学论（思政方向）（040102）、马克思主义哲学（010101）\n本科专业为：政治学类（一级学科）（0302）、马克思主义理论类（一级学科）（0305）、哲学（010101）","须在2025年7月31日前取得相应的教师资格证（在2025年7月31日前已经通过相应教师资格证笔试和面试考试未进行认定的，须在办理聘用备案手续前取得相应的教师资格证）","报名邮箱：4057411@qq.com\n报名电话：0434-6297509","0434-6297517"]
[105,"公主岭市","公主岭市教育局","公主岭市第六中学校","初中道德与法治教师","初级专业技术岗位","财政拨款",1,"不限","本科学历或硕士研究生及以上学历","与报名学历相对应的学位","研究生专业为：学科教学（思政）(专业学位)（045102）、政治学（一级学科）（0302）、马克思主义理论（一级学科）（0305）、课程与教学论（思政方向）（040102）、马克思主义哲学（010101）\n本科专业为：政治学类（一级学科）（0302）、马克思主义理论类（一级学科）（0305）、哲学（010101）","须在2025年7月31日前取得相应的教师资格证（在2025年7月31日前已经通过相应教师资格证笔试和面试考试未进行认定的，须在办理聘用备案手续前取得相应的教师资格证）","报名邮箱：4057411@qq.com\n报名电话：0434-6297509","0434-6297517"]
[106,"公主岭市","公主岭市教育局","公主岭市范家屯镇第一中学校","高中政治教师","初级专业技术岗位","财政拨款",2,"不限","本科学历或硕士研究生及以上学历","与报名学历相对应的学位","研究生专业为：学科教学（思政）(专业学位)（045102）、政治学（一级学科）（0302）、马克思主义理论（一级学科）（0305）、课程与教学论（思政方向）（040102）、马克思主义哲学（010101）\n本科专业为：政治学类（一级学科）（0302）、马克思主义理论类（一级学科）（0305）、哲学（010101）","须在2025年7月31日前取得相应的教师资格证（在2025年7月31日前已经通过相应教师资格证笔试和面试考试未进行认定的，须在办理聘用备案手续前取得相应的教师资格证）","报名邮箱：4057411@qq.com\n报名电话：0434-6297509","0434-6297517"]
[107,"公主岭市","公主岭市教育局","公主岭市第四中学校","初中数学教师","初级专业技术岗位","财政拨款",1,"不限","本科学历或硕士研究生及以上学历","与报名学历相对应的学位","研究生专业为：数学（一级学科）(0701)、学科教学（数学）(专业学位)(045104)、课程与教学论（数学方向）(040102）\n本科专业为：数学类（一级学科）（0701)、统计学(071201)","须在2025年7月31日前取得相应的教师资格证（在2025年7月31日前已经通过相应教师资格证笔试和面试考试未进行认定的，须在办理聘用备案手续前取得相应的教师资格证）","报名邮箱：4057411@qq.com\n报名电话：0434-6297509","0434-6297517"]
[108,"公主岭市","公主岭市教育局","公主岭市第四中学校","初中道德与法治教师","初级专业技术岗位","财政拨款",2,"不限","本科学历或硕士研究生及以上学历","与报名学历相对应的学位","研究生专业为：学科教学（思政）(专业学位)（045102）、政治学（一级学科）（0302）、马克思主义理论（一级学科）（0305）、课程与教学论（思政方向）（040102）、马克思主义哲学（010101）\n本科专业为：政治学类（一级学科）（0302）、马克思主义理论类（一级学科）（0305）、哲学（010101）","须在2025年7月31日前取得相应的教师资格证（在2025年7月31日前已经通过相应教师资格证笔试和面试考试未进行认定的，须在办理聘用备案手续前取得相应的教师资格证）","报名邮箱：4057411@qq.com\n报名电话：0434-6297509","0434-6297517"]
[{"$f":"ROW()-2","v":109},"公主岭市","公主岭市教育局","公主岭市第四中学校","初中历史教师","初级专业技术岗位","财政拨款",1,"不限","本科学历或硕士研究生及以上学历","与报名学历相对应的学位","研究生专业为：历史学（门类）(06)、学科教学（历史）(专业学位)(045109)、课程与教学论（历史方向）(040102)\n本科专业为：历史学类（一级学科）(0601)","须在2025年7月31日前取得相应的教师资格证（在2025年7月31日前已经通过相应教师资格证笔试和面试考试未进行认定的，须在办理聘用备案手续前取得相应的教师资格证）","报名邮箱：4057411@qq.com\n报名电话：0434-6297509","0434-6297517"]
[110,"公主岭市","公主岭市教育局","公主岭市第四中学校","初中地理教师","初级专业技术岗位","财政拨款",1,"不限","本科学历或硕士研究生及以上学历","与报名学历相对应的学位","研究生专业为：地理学（一级学科）（0705）、学科教学（地理）(专业学位)（045110）、课程与教学论（地理方向）（040102)\n本科专业为：地理科学类（一级学科）(0705)","须在2025年7月31日前取得相应的教师资格证（在2025年7月31日前已经通过相应教师资格证笔试和面试考试未进行认定的，须在办理聘用备案手续前取得相应的教师资格证）","报名邮箱：4057411@qq.com\n报名电话：0434-6297509","0434-6297517"]
[111,"公主岭市","公主岭市教育局","公主岭市第四中学校","初中物理教师","初级专业技术岗位","财政拨款",1,"不限","本科学历或硕士研究生及以上学历","与报名学历相对应的学位","研究生专业为：物理学（一级学科）(0702)、学科教学（物理）(专业学位)(045105)、课程与教学论（物理方向）(040102)\n本科专业为：物理学类（一级学科）(0702)","须在2025年7月31日前取得相应的教师资格证（在2025年7月31日前已经通过相应教师资格证笔试和面试考试未进行认定的，须在办理聘用备案手续前取得相应的教师资格证）","报名邮箱：4057411@qq.com\n报名电话：0434-6297509","0434-6297517"]
[112,"公主岭市","公主岭市教育局","公主岭市第四中学校","初中生物教师","初级专业技术岗位","财政拨款",2,"不限","本科学历或硕士研究生及以上学历","与报名学历相对应的学位","研究生专业为：生物学（一级学科）(0710)、学科教学（生物）(专业学位)(045107)、课程与教学论（生物方向）(040102)\n本科专业为：生物科学类（一级学科）(0710)","须在2025年7月31日前取得相应的教师资格证（在2025年7月31日前已经通过相应教师资格证笔试和面试考试未进行认定的，须在办理聘用备案手续前取得相应的教师资格证）","报名邮箱：4057411@qq.com\n报名电话：0434-6297509","0434-6297517"]
[113,"公主岭市","公主岭市教育局","公主岭市第四中学实验学校","初中数学教师","初级专业技术岗位","财政拨款",2,"不限","本科学历或硕士研究生及以上学历","与报名学历相对应的学位","研究生专业为：数学（一级学科）(0701)、学科教学（数学）(专业学位)(045104)、课程与教学论（数学方向）(040102）\n本科专业为：数学类（一级学科）（0701)、统计学(071201)","须在2025年7月31日前取得相应的教师资格证（在2025年7月31日前已经通过相应教师资格证笔试和面试考试未进行认定的，须在办理聘用备案手续前取得相应的教师资格证）","报名邮箱：4057411@qq.com\n报名电话：0434-6297509","0434-6297517"]
[114,"公主岭市","公主岭市教育局","公主岭市第四中学实验学校","初中语文教师","初级专业技术岗位","财政拨款",2,"不限","本科学历或硕士研究生及以上学历","与报名学历相对应的学位","研究生专业为：中国语言文学（一级学科）（0501）、学科教学（语文）(专业学位)（045103）、课程与教学论（语文方向）（040102）\n本科专业为：中国语言文学类（一级学科）（0501）","须在2025年7月31日前取得相应的教师资格证（在2025年7月31日前已经通过相应教师资格证笔试和面试考试未进行认定的，须在办理聘用备案手续前取得相应的教师资格证）","报名邮箱：4057411@qq.com\n报名电话：0434-6297509","0434-6297517"]
[115,"公主岭市","公主岭市教育局","公主岭市第四中学实验学校","初中英语教师","初级专业技术岗位","财政拨款",2,"不限","本科学历或硕士研究生及以上学历","与报名学历相对应的学位","研究生专业为：英语语言文学(050201)、学科教学（英语）(专业学位)(045108)、英语笔译（专业学位）(055101)、 英语口译（专业学位）(055102)、课程与教学论（英语方向）(040102)\n本科专业为：英语(050201)","须在2025年7月31日前取得相应的教师资格证（在2025年7月31日前已经通过相应教师资格证笔试和面试考试未进行认定的，须在办理聘用备案手续前取得相应的教师资格证）","报名邮箱：4057411@qq.com\n报名电话：0434-6297509","0434-6297517"]
[116,"公主岭市","公主岭市教育局","公主岭市第四中学实验学校","初中物理教师","初级专业技术岗位","财政拨款",1,"不限","本科学历或硕士研究生及以上学历","与报名学历相对应的学位","研究生专业为：物理学（一级学科）(0702)、学科教学（物理）(专业学位)(045105)、课程与教学论（物理方向）(040102)\n本科专业为：物理学类（一级学科）(0702)","须在2025年7月31日前取得相应的教师资格证（在2025年7月31日前已经通过相应教师资格证笔试和面试考试未进行认定的，须在办理聘用备案手续前取得相应的教师资格证）","报名邮箱：4057411@qq.com\n报名电话：0434-6297509","0434-6297517"]
[117,"公主岭市","公主岭市教育局","公主岭市第四中学实验学校","初中历史教师","初级专业技术岗位","财政拨款",2,"不限","本科学历或硕士研究生及以上学历","与报名学历相对应的学位","研究生专业为：历史学（门类）(06)、学科教学（历史）(专业学位)(045109)、课程与教学论（历史方向）(040102)\n本科专业为：历史学类（一级学科）(0601)","须在2025年7月31日前取得相应的教师资格证（在2025年7月31日前已经通过相应教师资格证笔试和面试考试未进行认定的，须在办理聘用备案手续前取得相应的教师资格证）","报名邮箱：4057411@qq.com\n报名电话：0434-6297509","0434-6297517"]
[118,"公主岭市","公主岭市教育局","公主岭市第四中学实验学校","初中体育与健康教师","初级专业技术岗位","财政拨款",2,"不限","本科学历或硕士研究生及以上学历","与报名学历相对应的学位","研究生专业为：学科教学（体育）(专业学位)(045112)、体育学(一级学科）(0403)、课程与教学论（体育方向）(040102)\n本科专业为：体育学类（一级学科）(0402)","须在2025年7月31日前取得相应的教师资格证（在2025年7月31日前已经通过相应教师资格证笔试和面试考试未进行认定的，须在办理聘用备案手续前取得相应的教师资格证）","报名邮箱：4057411@qq.com\n报名电话：0434-6297509","0434-6297517"]
[{"$f":"ROW()-2","v":119},"公主岭市","公主岭市教育局","公主岭市第七中学校","初中生物教师","初级专业技术岗位","财政拨款",1,"不限","本科学历或硕士研究生及以上学历","与报名学历相对应的学位","研究生专业为：生物学（一级学科）(0710)、学科教学（生物）(专业学位)(045107)、课程与教学论（生物方向）(040102)\n本科专业为：生物科学类（一级学科）(0710)","须在2025年7月31日前取得相应的教师资格证（在2025年7月31日前已经通过相应教师资格证笔试和面试考试未进行认定的，须在办理聘用备案手续前取得相应的教师资格证）","报名邮箱：4057411@qq.com\n报名电话：0434-6297509","0434-6297517"]
[120,"公主岭市","公主岭市教育局","公主岭市第七中学校","初中体育与健康教师","初级专业技术岗位","财政拨款",1,"不限","本科学历或硕士研究生及以上学历","与报名学历相对应的学位","研究生专业为：学科教学（体育）(专业学位)(045112)、体育学(一级学科）(0403)、课程与教学论（体育方向）(040102)\n本科专业为：体育学类（一级学科）(0402)","须在2025年7月31日前取得相应的教师资格证（在2025年7月31日前已经通过相应教师资格证笔试和面试考试未进行认定的，须在办理聘用备案手续前取得相应的教师资格证）","报名邮箱：4057411@qq.com\n报名电话：0434-6297509","0434-6297517"]
[121,"公主岭市","公主岭市教育局","公主岭市第八中学校","初中生物教师","初级专业技术岗位","财政拨款",1,"不限","本科学历或硕士研究生及以上学历","与报名学历相对应的学位","研究生专业为：生物学（一级学科）(0710)、学科教学（生物）(专业学位)(045107)、课程与教学论（生物方向）(040102)\n本科专业为：生物科学类（一级学科）(0710)","须在2025年7月31日前取得相应的教师资格证（在2025年7月31日前已经通过相应教师资格证笔试和面试考试未进行认定的，须在办理聘用备案手续前取得相应的教师资格证）","报名邮箱：4057411@qq.com\n报名电话：0434-6297509","0434-6297517"]
[122,"公主岭市","公主岭市教育局","公主岭市站前小学校","小学语文教师","初级专业技术岗位","财政拨款",1,"不限","本科学历或硕士研究生及以上学历","与报名学历相对应的学位","研究生专业为：中国语言文学（一级学科）（0501）、学科教学（语文）(专业学位)（045103）、课程与教学论（语文方向）（040102）\n本科专业为：中国语言文学类（一级学科）（0501）、小学教育（040107）","须在2025年7月31日前取得相应的教师资格证（在2025年7月31日前已经通过相应教师资格证笔试和面试考试未进行认定的，须在办理聘用备案手续前取得相应的教师资格证）","报名邮箱：4057411@qq.com\n报名电话：0434-6297509","0434-6297517"]
[123,"公主岭市","公主岭市教育局","公主岭市胜利小学校","小学体育教师","初级专业技术岗位","财政拨款",3,"不限","本科学历或硕士研究生及以上学历","与报名学历相对应的学位","研究生专业为：学科教学（体育）(专业学位)(045112)、体育学(一级学科）(0403)、课程与教学论（体育方向）(040102)\n本科专业为：体育学类（一级学科）(0402)","须在2025年7月31日前取得相应的教师资格证（在2025年7月31日前已经通过相应教师资格证笔试和面试考试未进行认定的，须在办理聘用备案手续前取得相应的教师资格证）","报名邮箱：4057411@qq.com\n报名电话：0434-6297509","0434-6297517"]
[124,"公主岭市","公主岭市教育局","公主岭市胜利小学校","小学英语教师","初级专业技术岗位","财政拨款",1,"不限","本科学历或硕士研究生及以上学历","与报名学历相对应的学位","研究生专业为：英语语言文学(050201)、学科教学（英语）(专业学位)(045108)、英语笔译（专业学位）(055101)、 英语口译（专业学位）(055102)、课程与教学论（英语方向）(040102)\n本科专业为：英语(050201)、小学教育（英语）（040107）","须在2025年7月31日前取得相应的教师资格证（在2025年7月31日前已经通过相应教师资格证笔试和面试考试未进行认定的，须在办理聘用备案手续前取得相应的教师资格证）","报名邮箱：4057411@qq.com\n报名电话：0434-6297509","0434-6297517"]
[125,"公主岭市","公主岭市教育局","公主岭市胜利小学校","小学道德与法治教师","初级专业技术岗位","财政拨款",2,"不限","本科学历或硕士研究生及以上学历","与报名学历相对应的学位","研究生专业为：学科教学（思政）(专业学位)（045102）、政治学（一级学科）（0302）、马克思主义理论（一级学科）（0305）、课程与教学论（思政方向）（040102）、马克思主义哲学（010101）\n本科专业为：政治学类（一级学科）（0302）、马克思主义理论类（一级学科）（0305）、哲学（010101）","须在2025年7月31日前取得相应的教师资格证（在2025年7月31日前已经通过相应教师资格证笔试和面试考试未进行认定的，须在办理聘用备案手续前取得相应的教师资格证）","报名邮箱：4057411@qq.com\n报名电话：0434-6297509","0434-6297517"]
[126,"公主岭市","公主岭市教育局","公主岭市第二实验小学校","小学体育教师","初级专业技术岗位","财政拨款",1,"不限","本科学历或硕士研究生及以上学历","与报名学历相对应的学位","研究生专业为：学科教学（体育）(专业学位)(045112)、体育学(一级学科）(0403)、课程与教学论（体育方向）(040102)\n本科专业为：体育学类（一级学科）(0402)","须在2025年7月31日前取得相应的教师资格证（在2025年7月31日前已经通过相应教师资格证笔试和面试考试未进行认定的，须在办理聘用备案手续前取得相应的教师资格证）","报名邮箱：4057411@qq.com\n报名电话：0434-6297509","0434-6297517"]
[127,"公主岭市","公主岭市教育局","公主岭市第二实验小学校","小学语文教师","初级专业技术岗位","财政拨款",1,"不限","本科学历或硕士研究生及以上学历","与报名学历相对应的学位","研究生专业为：中国语言文学（一级学科）（0501）、学科教学（语文）(专业学位)（045103）、课程与教学论（语文方向）（040102）\n本科专业为：中国语言文学类（一级学科）（0501）、小学教育（040107）","须在2025年7月31日前取得相应的教师资格证（在2025年7月31日前已经通过相应教师资格证笔试和面试考试未进行认定的，须在办理聘用备案手续前取得相应的教师资格证）","报名邮箱：4057411@qq.com\n报名电话：0434-6297509","0434-6297517"]
[128,"公主岭市","公主岭市教育局","公主岭市实验小学校","小学体育教师","初级专业技术岗位","财政拨款",1,"不限","本科学历或硕士研究生及以上学历","与报名学历相对应的学位","研究生专业为：学科教学（体育）(专业学位)(045112)、体育学(一级学科）(0403)、课程与教学论（体育方向）(040102)\n本科专业为：体育学类（一级学科）(0402)","须在2025年7月31日前取得相应的教师资格证（在2025年7月31日前已经通过相应教师资格证笔试和面试考试未进行认定的，须在办理聘用备案手续前取得相应的教师资格证）","报名邮箱：4057411@qq.com\n报名电话：0434-6297509","0434-6297517"]
[{"$f":"ROW()-2","v":129},"公主岭市","公主岭市教育局","公主岭市实验小学校","小学音乐教师","初级专业技术岗位","财政拨款",1,"不限","本科学历或硕士研究生及以上学历","与报名学历相对应的学位","研究生专业为：艺术学（一级学科）（音乐方向、舞蹈方向）（1301）、音乐（一级学科专业学位）（1352）、舞蹈（一级学科专业学位）（1353）、学科教学（音乐）(专业学位)(045111)、课程与教学论（音乐方向）(040102)\n本科专业为：音乐与舞蹈学类（一级学科）(1302)","须在2025年7月31日前取得相应的教师资格证（在2025年7月31日前已经通过相应教师资格证笔试和面试考试未进行认定的，须在办理聘用备案手续前取得相应的教师资格证）","报名邮箱：4057411@qq.com\n报名电话：0434-6297509","0434-6297517"]
[130,"榆树市","榆树市教育局","榆树市实验高级中学校","高中语文教师","初级专业技术岗位","财政拨款",1,"不限","本科学历或硕士研究生及以上学历","与报名学历相对应的学位","研究生专业为：中国语言文学(一级学科)（0501）、学科教学(语文)(专业学位)（045103）、课程与教学论（语文方向）（040102）\n本科专业为：中国语言文学类(一级学科)（0501）","须在2025年7月31日前取得相应的教师资格证（在2025年7月31日前已经通过相应教师资格证笔试和面试考试未进行认定的，须在办理聘用备案手续前取得相应的教师资格证）","报名邮箱：234141142@qq.com\n报名电话：15044390088","0431-83618086"]
[131,{"$f":"B132","v":"榆树市"},"榆树市教育局","榆树市实验高级中学校","高中物理教师","初级专业技术岗位","财政拨款",1,"不限","本科学历或硕士研究生及以上学历","与报名学历相对应的学位","研究生专业为：物理学（一级学科）(0702)、学科教学（物理）(专业学位)(045105)、课程与教学论（物理方向）(040102)\n本科专业为：物理学类（一级学科）(0702)","须在2025年7月31日前取得相应的教师资格证（在2025年7月31日前已经通过相应教师资格证笔试和面试考试未进行认定的，须在办理聘用备案手续前取得相应的教师资格证）","报名邮箱：234141142@qq.com\n报名电话：15044390088","0431-83618086"]
[132,"榆树市","榆树市教育局","榆树市实验高级中学校","高中政治教师","初级专业技术岗位","财政拨款",1,"不限","本科学历或硕士研究生及以上学历","与报名学历相对应的学位","研究生专业为：哲学（一级学科）（0101）、政治学(一级学科)（0302）、马克思主义理论(一级学科)（0305）、学科教学(思政)(专业学位)（045102）、课程与教学论（思政方向）（040102）\n本科专业为：哲学类（一级学科）（0101）、政治学类(一级学科)（0302）、马克思主义理论类(一级学科)（0305）","须在2025年7月31日前取得相应的教师资格证（在2025年7月31日前已经通过相应教师资格证笔试和面试考试未进行认定的，须在办理聘用备案手续前取得相应的教师资格证）","报名邮箱：234141142@qq.com\n报名电话：15044390088","0431-83618086"]
[133,"榆树市","榆树市教育局","榆树市第一高级中学校","高中政治教师","初级专业技术岗位","财政拨款",1,"不限","本科学历或硕士研究生及以上学历","与报名学历相对应的学位","研究生专业为：哲学（一级学科）（0101）、政治学(一级学科)（0302）、马克思主义理论(一级学科)（0305）、学科教学(思政)(专业学位)（045102）、课程与教学论（思政方向）（040102）\n本科专业为：哲学类（一级学科）（0101）、政治学类(一级学科)（0302）、马克思主义理论类(一级学科)（0305）","须在2025年7月31日前取得相应的教师资格证（在2025年7月31日前已经通过相应教师资格证笔试和面试考试未进行认定的，须在办理聘用备案手续前取得相应的教师资格证）","报名邮箱：234141142@qq.com\n报名电话：15044390088","0431-83618086"]
[134,"榆树市","榆树市教育局","榆树市第一高级中学校","高中物理教师","初级专业技术岗位","财政拨款",1,"不限","本科学历或硕士研究生及以上学历","与报名学历相对应的学位","研究生专业为：物理学（一级学科）(0702)、学科教学（物理）(专业学位)(045105)、课程与教学论（物理方向）(040102)\n本科专业为：物理学类（一级学科）(0702)","须在2025年7月31日前取得相应的教师资格证（在2025年7月31日前已经通过相应教师资格证笔试和面试考试未进行认定的，须在办理聘用备案手续前取得相应的教师资格证）","报名邮箱：234141142@qq.com\n报名电话：15044390088","0431-83618086"]
[135,"榆树市","榆树市教育局","榆树市第一高级中学校","高中地理教师","初级专业技术岗位","财政拨款",1,"不限","本科学历或硕士研究生及以上学历","与报名学历相对应的学位","研究生专业为：地理学(一级学科)（0705）、学科教学(地理)(专业学位)（045110）、课程与教学论（地理方向）（040102)\n本科专业为：地理科学类(一级学科)（0705）","须在2025年7月31日前取得相应的教师资格证（在2025年7月31日前已经通过相应教师资格证笔试和面试考试未进行认定的，须在办理聘用备案手续前取得相应的教师资格证）","报名邮箱：234141142@qq.com\n报名电话：15044390088","0431-83618086"]
[136,"榆树市","榆树市教育局","长春市榆树高级中学","高中政治教师","初级专业技术岗位","财政拨款",1,"不限","本科学历或硕士研究生及以上学历","与报名学历相对应的学位","研究生专业为：哲学（一级学科）（0101）、政治学(一级学科)（0302）、马克思主义理论(一级学科)（0305）、学科教学(思政)(专业学位)（045102）、课程与教学论（思政方向）（040102）\n本科专业为：哲学类（一级学科）（0101）、政治学类(一级学科)（0302）、马克思主义理论类(一级学科)（0305）","须在2025年7月31日前取得相应的教师资格证（在2025年7月31日前已经通过相应教师资格证笔试和面试考试未进行认定的，须在办理聘用备案手续前取得相应的教师资格证）","报名邮箱：234141142@qq.com\n报名电话：15044390088","0431-83618086"]
[137,"榆树市","榆树市教育局","长春市榆树高级中学","高中物理教师","初级专业技术岗位","财政拨款",1,"不限","本科学历或硕士研究生及以上学历","与报名学历相对应的学位","研究生专业为：物理学（一级学科）(0702)、学科教学（物理）(专业学位)(045105)、课程与教学论（物理方向）(040102)\n本科专业为：物理学类（一级学科）(0702)","须在2025年7月31日前取得相应的教师资格证（在2025年7月31日前已经通过相应教师资格证笔试和面试考试未进行认定的，须在办理聘用备案手续前取得相应的教师资格证）","报名邮箱：234141142@qq.com\n报名电话：15044390088","0431-83618086"]
[138,"榆树市","榆树市教育局","榆树市弓棚高级中学","高中物理教师","初级专业技术岗位","财政拨款",1,"不限","本科学历或硕士研究生及以上学历","与报名学历相对应的学位","研究生专业为：物理学（一级学科）(0702)、学科教学（物理）(专业学位)(045105)、课程与教学论（物理方向）(040102)\n本科专业为：物理学类（一级学科）(0702)","须在2025年7月31日前取得相应的教师资格证（在2025年7月31日前已经通过相应教师资格证笔试和面试考试未进行认定的，须在办理聘用备案手续前取得相应的教师资格证）","报名邮箱：234141142@qq.com\n报名电话：15044390088","0431-83618086"]
[{"$f":"ROW()-2","v":139},"榆树市","榆树市教育局","榆树市弓棚高级中学","高中数学教师","初级专业技术岗位","财政拨款",1,"不限","本科学历或硕士研究生及以上学历","与报名学历相对应的学位","研究生专业为：数学(一级学科)（0701）、学科教学(数学)(专业学位)（045104）、课程与教学论（数学方向）（040102）\n本科专业为：数学类(一级学科)（0701）","须在2025年7月31日前取得相应的教师资格证（在2025年7月31日前已经通过相应教师资格证笔试和面试考试未进行认定的，须在办理聘用备案手续前取得相应的教师资格证）","报名邮箱：234141142@qq.com\n报名电话：15044390088","0431-83618086"]
[140,"德惠市","德惠市教育局","德惠市实验中学","高中英语教师","初级专业技术岗位","财政拨款",1,"不限","本科学历或硕士研究生及以上学历","与报名学历相对应的学位","研究生专业为：英语语言文学（050201）、学科教学（英语）(专业学位)（045108）、英语笔译（专业学位）（055101）、英语口译（专业学位）（055102）\n本科专业为：英语（050201）","须在2025年7月31日前取得相应的教师资格证（在2025年7月31日前已经通过相应教师资格证笔试和面试考试未进行认定的，须在办理聘用备案手续前取得相应的教师资格证）","报名邮箱：446083263@qq.com\n报名电话：0431-87385009、19969572005","0431-87388899"]
[141,{"$f":"B142","v":"德惠市"},"德惠市教育局","德惠市实验中学","高中体育教师","初级专业技术岗位","财政拨款",1,"不限","本科学历或硕士研究生及以上学历","与报名学历相对应的学位","研究生专业为：体育学(一级学科)（0403）、学科教学(体育)(专业学位)（045112）、体育教学(专业学位)（045201）\n本科专业为：体育学类(一级学科)（0402）","须在2025年7月31日前取得相应的教师资格证（在2025年7月31日前已经通过相应教师资格证笔试和面试考试未进行认定的，须在办理聘用备案手续前取得相应的教师资格证）","报名邮箱：446083263@qq.com\n报名电话：0431-87385009、19969572005","0431-87388899"]
[142,"德惠市","德惠市教育局","德惠市实验中学","高中政治教师","初级专业技术岗位","财政拨款",1,"不限","本科学历或硕士研究生及以上学历","与报名学历相对应的学位","研究生专业为：学科教学(思政)(专业学位)（045102）、政治学(一级学科)（0302）、马克思主义理论(一级学科)（0305）\n本科专业为：政治学类(一级学科)（0302）、马克思主义理论类(一级学科)（0305）","须在2025年7月31日前取得相应的教师资格证（在2025年7月31日前已经通过相应教师资格证笔试和面试考试未进行认定的，须在办理聘用备案手续前取得相应的教师资格证）","报名邮箱：446083263@qq.com\n报名电话：0431-87385009、19969572005","0431-87388899"]
[143,"德惠市","德惠市教育局","德惠市第一中学","高中历史教师","初级专业技术岗位","财政拨款",2,"不限","本科学历或硕士研究生及以上学历","与报名学历相对应的学位","研究生专业为：中国史（一级学科）（0602）、世界史（一级学科）（0603）、学科教学(历史)(专业学位)（045109）\n本科专业为：历史学类（一级学科）（0601）","须在2025年7月31日前取得相应的教师资格证（在2025年7月31日前已经通过相应教师资格证笔试和面试考试未进行认定的，须在办理聘用备案手续前取得相应的教师资格证）","报名邮箱：446083263@qq.com\n报名电话：0431-87385009、19969572005","0431-87388899"]
[144,"德惠市","德惠市教育局","德惠市第一中学","高中生物教师","初级专业技术岗位","财政拨款",1,"不限","本科学历或硕士研究生及以上学历","与报名学历相对应的学位","研究生专业为：生物学(一级学科)（0710）、生态学(一级学科)（0713）、学科教学(生物)(专业学位)（045107）\n本科专业为：生物科学类(一级学科)（0710）","须在2025年7月31日前取得相应的教师资格证（在2025年7月31日前已经通过相应教师资格证笔试和面试考试未进行认定的，须在办理聘用备案手续前取得相应的教师资格证）","报名邮箱：446083263@qq.com\n报名电话：0431-87385009、19969572005","0431-87388899"]
[145,"德惠市","德惠市教育局","德惠市第四中学","高中语文教师","初级专业技术岗位","财政拨款",1,"不限","本科学历或硕士研究生及以上学历","与报名学历相对应的学位","研究生专业为：中国语言文学(一级学科)（0501）、学科教学(语文)(专业学位)（045103）\n本科专业为：中国语言文学类(一级学科)（0501）","须在2025年7月31日前取得相应的教师资格证（在2025年7月31日前已经通过相应教师资格证笔试和面试考试未进行认定的，须在办理聘用备案手续前取得相应的教师资格证）","报名邮箱：446083263@qq.com\n报名电话：0431-87385009、19969572005","0431-87388899"]
[146,"德惠市","德惠市教育局","德惠市第四中学","高中生物教师","初级专业技术岗位","财政拨款",1,"不限","本科学历或硕士研究生及以上学历","与报名学历相对应的学位","研究生专业为：生物学(一级学科)（0710）、生态学(一级学科)（0713）、学科教学(生物)(专业学位)（045107）\n本科专业为：生物科学类(一级学科)（0710）","须在2025年7月31日前取得相应的教师资格证（在2025年7月31日前已经通过相应教师资格证笔试和面试考试未进行认定的，须在办理聘用备案手续前取得相应的教师资格证）","报名邮箱：446083263@qq.com\n报名电话：0431-87385009、19969572005","0431-87388899"]
[147,"德惠市","德惠市教育局","德惠市第三中学","初中数学教师","初级专业技术岗位","财政拨款",2,"不限","本科学历或硕士研究生及以上学历","与报名学历相对应的学位","研究生专业为：学科教学(数学)(专业学位)（045104）、数学(一级学科)（0701）\n本科专业为：数学类(一级学科)（0701）","须在2025年7月31日前取得相应的教师资格证（在2025年7月31日前已经通过相应教师资格证笔试和面试考试未进行认定的，须在办理聘用备案手续前取得相应的教师资格证）","报名邮箱：446083263@qq.com\n报名电话：0431-87385009、19969572005","0431-87388899"]
[148,"德惠市","德惠市教育局","德惠市第三中学","初中历史教师","初级专业技术岗位","财政拨款",1,"不限","本科学历或硕士研究生及以上学历","与报名学历相对应的学位","研究生专业为：中国史（一级学科）（0602）、世界史（一级学科）（0603）、学科教学(历史)(专业学位)（045109）\n本科专业为：历史学类（一级学科）（0601）","须在2025年7月31日前取得相应的教师资格证（在2025年7月31日前已经通过相应教师资格证笔试和面试考试未进行认定的，须在办理聘用备案手续前取得相应的教师资格证）","报名邮箱：446083263@qq.com\n报名电话：0431-87385009、19969572005","0431-87388899"]
[{"$f":"ROW()-2","v":149},"德惠市","德惠市教育局","德惠市第三中学","初中地理教师","初级专业技术岗位","财政拨款",1,"不限","本科学历或硕士研究生及以上学历","与报名学历相对应的学位","研究生专业为：地理学(一级学科)（0705）、学科教学(地理)(专业学位)（045110）\n本科专业为：地理科学类(一级学科)（0705）","须在2025年7月31日前取得相应的教师资格证（在2025年7月31日前已经通过相应教师资格证笔试和面试考试未进行认定的，须在办理聘用备案手续前取得相应的教师资格证）","报名邮箱：446083263@qq.com\n报名电话：0431-87385009、19969572005","0431-87388899"]
[150,"德惠市","德惠市教育局","德惠市第五中学","初中语文教师","初级专业技术岗位","财政拨款",1,"不限","本科学历或硕士研究生及以上学历","与报名学历相对应的学位","研究生专业为：中国语言文学(一级学科)（0501）、学科教学(语文)(专业学位)（045103）\n本科专业为：中国语言文学类(一级学科)（0501）","须在2025年7月31日前取得相应的教师资格证（在2025年7月31日前已经通过相应教师资格证笔试和面试考试未进行认定的，须在办理聘用备案手续前取得相应的教师资格证）","报名邮箱：446083263@qq.com\n报名电话：0431-87385009、19969572005","0431-87388899"]
[151,"德惠市","德惠市教育局","德惠市第五中学","初中地理教师","初级专业技术岗位","财政拨款",1,"不限","本科学历或硕士研究生及以上学历","与报名学历相对应的学位","研究生专业为：地理学(一级学科)（0705）、学科教学(地理)(专业学位)（045110）\n本科专业为：地理科学类(一级学科)（0705）","须在2025年7月31日前取得相应的教师资格证（在2025年7月31日前已经通过相应教师资格证笔试和面试考试未进行认定的，须在办理聘用备案手续前取得相应的教师资格证）","报名邮箱：446083263@qq.com\n报名电话：0431-87385009、19969572005","0431-87388899"]
[152,"德惠市","德惠市教育局","德惠市第二十九中学","初中数学教师","初级专业技术岗位","财政拨款",2,"不限","本科学历或硕士研究生及以上学历","与报名学历相对应的学位","研究生专业为：学科教学(数学)(专业学位)（045104）、数学(一级学科)（0701）\n本科专业为：数学类(一级学科)（0701）","须在2025年7月31日前取得相应的教师资格证（在2025年7月31日前已经通过相应教师资格证笔试和面试考试未进行认定的，须在办理聘用备案手续前取得相应的教师资格证）","报名邮箱：446083263@qq.com\n报名电话：0431-87385009、19969572005","0431-87388899"]
[153,"德惠市","德惠市教育局","德惠市第二十九中学","初中地理教师","初级专业技术岗位","财政拨款",1,"不限","本科学历或硕士研究生及以上学历","与报名学历相对应的学位","研究生专业为：地理学(一级学科)（0705）、学科教学(地理)(专业学位)（045110）\n本科专业为：地理科学类(一级学科)（0705）","须在2025年7月31日前取得相应的教师资格证（在2025年7月31日前已经通过相应教师资格证笔试和面试考试未进行认定的，须在办理聘用备案手续前取得相应的教师资格证）","报名邮箱：446083263@qq.com\n报名电话：0431-87385009、19969572005","0431-87388899"]
[154,"德惠市","德惠市教育局","德惠市实验小学","小学数学教师","初级专业技术岗位","财政拨款",1,"不限","本科学历或硕士研究生及以上学历","与报名学历相对应的学位","研究生专业为：数学(一级学科)（0701）、小学教育(专业学位)（045115）、学科教学(数学)(专业学位)（045104）\n本科专业为：数学类(一级学科)（0701）、小学教育（040107）","须在2025年7月31日前取得相应的教师资格证（在2025年7月31日前已经通过相应教师资格证笔试和面试考试未进行认定的，须在办理聘用备案手续前取得相应的教师资格证）","报名邮箱：446083263@qq.com\n报名电话：0431-87385009、19969572005","0431-87388899"]
[155,"德惠市","德惠市教育局","德惠市第二实验小学","小学音乐教师","初级专业技术岗位","财政拨款",1,"不限","本科学历或硕士研究生及以上学历","与报名学历相对应的学位","研究生专业为：艺术学（一级学科）（音乐方向、舞蹈方向）（1301）、学科教学(音乐)(专业学位)（045111）、音乐（一级学科专业学位）（1352）、舞蹈（一级学科专业学位）（1353）\n本科专业为：音乐与舞蹈学类(一级学科)（1302）","须在2025年7月31日前取得相应的教师资格证（在2025年7月31日前已经通过相应教师资格证笔试和面试考试未进行认定的，须在办理聘用备案手续前取得相应的教师资格证）","报名邮箱：446083263@qq.com\n报名电话：0431-87385009、19969572005","0431-87388899"]
[156,"德惠市","德惠市教育局","德惠市第一小学","小学音乐教师","初级专业技术岗位","财政拨款",1,"不限","本科学历或硕士研究生及以上学历","与报名学历相对应的学位","研究生专业为：艺术学（一级学科）（音乐方向、舞蹈方向）（1301）、学科教学(音乐)(专业学位)（045111）、音乐（一级学科专业学位）（1352）、舞蹈（一级学科专业学位）（1353）\n本科专业为：音乐与舞蹈学类(一级学科)（1302）","须在2025年7月31日前取得相应的教师资格证（在2025年7月31日前已经通过相应教师资格证笔试和面试考试未进行认定的，须在办理聘用备案手续前取得相应的教师资格证）","报名邮箱：446083263@qq.com\n报名电话：0431-87385009、19969572005","0431-87388899"]
[157,"德惠市","德惠市教育局","德惠市第四小学","小学美术教师","初级专业技术岗位","财政拨款",1,"不限","本科学历或硕士研究生及以上学历","与报名学历相对应的学位","研究生专业为：艺术学（一级学科）（美术与书法方向）（1301）、美术与书法（一级学科专业学位）（1356）、学科教学(美术)(专业学位)（045113）\n本科专业为：美术学类(一级学科)（1304）","须在2025年7月31日前取得相应的教师资格证（在2025年7月31日前已经通过相应教师资格证笔试和面试考试未进行认定的，须在办理聘用备案手续前取得相应的教师资格证）","报名邮箱：446083263@qq.com\n报名电话：0431-87385009、19969572005","0431-87388899"]
[158,"德惠市","德惠市教育局","德惠市第六小学","小学美术教师","初级专业技术岗位","财政拨款",1,"不限","本科学历或硕士研究生及以上学历","与报名学历相对应的学位","研究生专业为：艺术学（一级学科）（美术与书法方向）（1301）、美术与书法（一级学科专业学位）（1356）、学科教学(美术)(专业学位)（045113）\n本科专业为：美术学类(一级学科)（1304）","须在2025年7月31日前取得相应的教师资格证（在2025年7月31日前已经通过相应教师资格证笔试和面试考试未进行认定的，须在办理聘用备案手续前取得相应的教师资格证）","报名邮箱：446083263@qq.com\n报名电话：0431-87385009、19969572005","0431-87388899"]
[{"$f":"ROW()-2","v":159},"德惠市","德惠市教育局","德惠市幼儿园","幼儿教师","初级专业技术岗位","财政拨款",2,"不限","本科学历或硕士研究生及以上学历","与报名学历相对应的学位","研究生专业为：学前教育(专业学位)（045118）、学前教育学（040105）\n本科专业为：学前教育（040106）","须在2025年7月31日前取得相应的教师资格证（在2025年7月31日前已经通过相应教师资格证笔试和面试考试未进行认定的，须在办理聘用备案手续前取得相应的教师资格证）","报名邮箱：446083263@qq.com\n报名电话：0431-87385009、19969572005","0431-87388899"]
[160,"德惠市","德惠市教育局","德惠市第二幼儿园","幼儿教师","初级专业技术岗位","财政拨款",2,"不限","本科学历或硕士研究生及以上学历","与报名学历相对应的学位","研究生专业为：学前教育(专业学位)（045118）、学前教育学（040105）\n本科专业为：学前教育（040106）","须在2025年7月31日前取得相应的教师资格证（在2025年7月31日前已经通过相应教师资格证笔试和面试考试未进行认定的，须在办理聘用备案手续前取得相应的教师资格证）","报名邮箱：446083263@qq.com\n报名电话：0431-87385009、19969572005","0431-87388899"]
[161,"德惠市","德惠市教育局","德惠市第三幼儿园","幼儿教师","初级专业技术岗位","财政拨款",2,"不限","本科学历或硕士研究生及以上学历","与报名学历相对应的学位","研究生专业为：学前教育(专业学位)（045118）、学前教育学（040105）\n本科专业为：学前教育（040106）","须在2025年7月31日前取得相应的教师资格证（在2025年7月31日前已经通过相应教师资格证笔试和面试考试未进行认定的，须在办理聘用备案手续前取得相应的教师资格证）","报名邮箱：446083263@qq.com\n报名电话：0431-87385009、19969572005","0431-87388899"]
[162,"德惠市","德惠市教育局","德惠市第四幼儿园","幼儿教师","初级专业技术岗位","财政拨款",2,"不限","本科学历或硕士研究生及以上学历","与报名学历相对应的学位","研究生专业为：学前教育(专业学位)（045118）、学前教育学（040105）\n本科专业为：学前教育（040106）","须在2025年7月31日前取得相应的教师资格证（在2025年7月31日前已经通过相应教师资格证笔试和面试考试未进行认定的，须在办理聘用备案手续前取得相应的教师资格证）","报名邮箱：446083263@qq.com\n报名电话：0431-87385009、19969572005","0431-87388899"]
[163,"莲花山","长春莲花山生态旅游度假区教育卫生健康局","长春市第85中学","初中语文教师","初级专业技术岗位","财政拨款",1,"不限","本科学历或硕士研究生及以上学历","与报名学历相对应的学位","研究生专业为：中国语言文学(一级学科)（0501）、学科教学(语文)(专业学位)（045103）\n本科专业为：中国语言文学类(一级学科)（0501）","须在2025年7月31日前取得相应的教师资格证（在2025年7月31日前已经通过相应教师资格证笔试和面试考试未进行认定的，须在办理聘用备案手续前取得相应的教师资格证）","报名邮箱：cclhsjyj@163.com\n报名电话：0431-82536047、0431-82536043","0431-81331234"]
[164,"莲花山","长春莲花山生态旅游度假区教育卫生健康局","长春市第85中学","初中数学教师","初级专业技术岗位","财政拨款",1,"不限","本科学历或硕士研究生及以上学历","与报名学历相对应的学位","研究生专业为：数学（一级学科）（0701）、学科教学（数学）（专业学位）（045104）\n本科专业为：数学类（一级学科）(0701)","须在2025年7月31日前取得相应的教师资格证（在2025年7月31日前已经通过相应教师资格证笔试和面试考试未进行认定的，须在办理聘用备案手续前取得相应的教师资格证）","报名邮箱：cclhsjyj@163.com\n报名电话：0431-82536047、0431-82536043","0431-81331234"]
[165,"莲花山","长春莲花山生态旅游度假区教育卫生健康局","长春市第85中学","初中英语教师","初级专业技术岗位","财政拨款",1,"不限","本科学历或硕士研究生及以上学历","与报名学历相对应的学位","研究生专业为：英语语言文学（050201）、外国语言学及应用语言学(英语方向)（050211）、英语笔译(专业学位)（055101）、英语口译(专业学位)（055102）、学科教学(英语)(专业学位)（045108）\n本科专业为：英语（050201）","须在2025年7月31日前取得相应的教师资格证（在2025年7月31日前已经通过相应教师资格证笔试和面试考试未进行认定的，须在办理聘用备案手续前取得相应的教师资格证）","报名邮箱：cclhsjyj@163.com\n报名电话：0431-82536047、0431-82536043","0431-81331234"]
[166,"莲花山","长春莲花山生态旅游度假区教育卫生健康局","长春市第85中学","初中历史教师","初级专业技术岗位","财政拨款",1,"不限","本科学历或硕士研究生及以上学历","与报名学历相对应的学位","研究生专业为：中国史（一级学科）（0602）、世界史（一级学科）（0603）、学科教学(历史)(专业学位)（045109）\n本科专业为：历史学类（一级学科）（0601）","须在2025年7月31日前取得相应的教师资格证（在2025年7月31日前已经通过相应教师资格证笔试和面试考试未进行认定的，须在办理聘用备案手续前取得相应的教师资格证）","报名邮箱：cclhsjyj@163.com\n报名电话：0431-82536047、0431-82536043","0431-81331234"]
[167,"汽开区","长春汽车经济技术开发区教育局","长春汽车经济技术开发区长沈路学校","小学语文教师","初级专业技术岗位","财政拨款",3,"不限","本科学历或硕士研究生及以上学历","与报名学历相对应的学位","研究生专业为：中国语言文学(一级学科)（0501）、学科教学(语文)(专业学位)（045103）、课程与教学论(语文方向)（040102）、 汉语国际教育（045174）、国际中文教育（专业学位一级学科）（0453）、小学教育（专业学位）（045115）\n本科专业为：中国语言文学类(一级学科)（0501）、教育学(语文方向)（040101）、小学教育（040107）","须在2025年7月31日前取得相应的教师资格证（在2025年7月31日前已经通过相应教师资格证笔试和面试考试未进行认定的，须在办理聘用备案手续前取得相应的教师资格证）","报名邮箱：35713060@qq.com\n报名电话：0431-85905162、85901901","0431-81501849","报考此岗位需服从主管部门调配。"]
[168,"汽开区","长春汽车经济技术开发区教育局","长春汽车经济技术开发区长沈路学校","小学数学教师","初级专业技术岗位","财政拨款",2,"不限","本科学历或硕士研究生及以上学历","与报名学历相对应的学位","研究生专业为：数学(一级学科)（0701）、学科教学(数学)(专业学位)（045104）、课程与教学论(数学方向)（040102）、小学教育（专业学位）（045115）\n本科专业为：数学类(一级学科)（0701）、教育学(数学方向)（040101）、小学教育（040107）","须在2025年7月31日前取得相应的教师资格证（在2025年7月31日前已经通过相应教师资格证笔试和面试考试未进行认定的，须在办理聘用备案手续前取得相应的教师资格证）","报名邮箱：35713060@qq.com\n报名电话：0431-85905162、85901901","0431-81501849","报考此岗位需服从主管部门调配。"]
[{"$f":"ROW()-2","v":169},"汽开区","长春汽车经济技术开发区教育局","长春汽车经济技术开发区长沈路学校","初中数学教师","初级专业技术岗位","财政拨款",3,"不限","本科学历或硕士研究生及以上学历","与报名学历相对应的学位","研究生专业为：数学(一级学科)（0701）、学科教学(数学)(专业学位)（045104）、课程与教学论(数学方向)（040102）\n本科专业为：数学类(一级学科)（0701）、教育学(数学方向)（040101）","须在2025年7月31日前取得相应的教师资格证（在2025年7月31日前已经通过相应教师资格证笔试和面试考试未进行认定的，须在办理聘用备案手续前取得相应的教师资格证）","报名邮箱：35713060@qq.com\n报名电话：0431-85905162、85901901","0431-81501849","报考此岗位需服从主管部门调配。"]
[170,"汽开区","长春汽车经济技术开发区教育局","长春汽车经济技术开发区长沈路学校","初中英语教师","初级专业技术岗位","财政拨款",1,"不限","本科学历或硕士研究生及以上学历","与报名学历相对应的学位","研究生专业为：英语语言文学（050201）、英语笔译(专业学位)（055101）、英语口译(专业学位)（055102）、学科教学(英语)(专业学位)（045108）、 课程与教学论(英语方向)（040102）\n本科专业为：英语（050201）、翻译(英语方向)（050261）、商务英语（050262）","须在2025年7月31日前取得相应的教师资格证（在2025年7月31日前已经通过相应教师资格证笔试和面试考试未进行认定的，须在办理聘用备案手续前取得相应的教师资格证）","报名邮箱：35713060@qq.com\n报名电话：0431-85905162、85901901","0431-81501849","报考此岗位需服从主管部门调配。"]
[171,"汽开区","长春汽车经济技术开发区教育局","长春汽车经济技术开发区长沈路学校","初中物理教师","初级专业技术岗位","财政拨款",1,"不限","本科学历或硕士研究生及以上学历","与报名学历相对应的学位","研究生专业为：物理学(一级学科)（0702）、学科教学(物理)(专业学位)（045105）、课程与教学论(物理方向)（040102）\n本科专业为：物理学类(一级学科)（0702）","须在2025年7月31日前取得相应的教师资格证（在2025年7月31日前已经通过相应教师资格证笔试和面试考试未进行认定的，须在办理聘用备案手续前取得相应的教师资格证）","报名邮箱：35713060@qq.com\n报名电话：0431-85905162、85901901","0431-81501849","报考此岗位需服从主管部门调配。"]
[172,"汽开区","长春汽车经济技术开发区教育局","长春汽车经济技术开发区长沈路学校","初中信息技术教师","初级专业技术岗位","财政拨款",1,"不限","本科学历或硕士研究生及以上学历","与报名学历相对应的学位","研究生专业为：计算机科学与技术(一级学科)（0775、0812）、计算机技术(专业学位)（085404）、现代教育技术(专业学位)（045114）、课程与教学论(计算机方向)（040102）\n本科专业为：计算机类(一级学科)（0809）、教育技术学（040104）","须在2025年7月31日前取得相应的教师资格证（在2025年7月31日前已经通过相应教师资格证笔试和面试考试未进行认定的，须在办理聘用备案手续前取得相应的教师资格证）","报名邮箱：35713060@qq.com\n报名电话：0431-85905162、85901901","0431-81501849","报考此岗位需服从主管部门调配。"]
[173,"汽开区","长春汽车经济技术开发区教育局","长春汽车经济技术开发区西湖实验学校","初中信息技术教师","初级专业技术岗位","财政拨款",1,"不限","本科学历或硕士研究生及以上学历","与报名学历相对应的学位","研究生专业为：计算机科学与技术(一级学科)（0775、0812）、计算机技术(专业学位)（085404）、现代教育技术(专业学位)（045114）、课程与教学论(计算机方向)（040102）\n本科专业为：计算机类(一级学科)（0809）、教育技术学（040104）","须在2025年7月31日前取得相应的教师资格证（在2025年7月31日前已经通过相应教师资格证笔试和面试考试未进行认定的，须在办理聘用备案手续前取得相应的教师资格证）","报名邮箱：35713060@qq.com\n报名电话：0431-85905162、85901901","0431-81501849"]
[174,"汽开区","长春汽车经济技术开发区教育局","长春汽车经济技术开发区西湖实验学校","小学语文教师","初级专业技术岗位","财政拨款",2,"不限","本科学历或硕士研究生及以上学历","与报名学历相对应的学位","研究生专业为：中国语言文学(一级学科)（0501）、学科教学(语文)(专业学位)（045103）、课程与教学论(语文方向)（040102）、 汉语国际教育（045174）、国际中文教育（专业学位一级学科）（0453）、小学教育（专业学位）（045115）\n本科专业为：中国语言文学类(一级学科)（0501）、教育学(语文方向)（040101）、小学教育（040107）","须在2025年7月31日前取得相应的教师资格证（在2025年7月31日前已经通过相应教师资格证笔试和面试考试未进行认定的，须在办理聘用备案手续前取得相应的教师资格证）","报名邮箱：35713060@qq.com\n报名电话：0431-85905162、85901901","0431-81501849"]
[175,"汽开区","长春汽车经济技术开发区教育局","长春汽车经济技术开发区西湖实验学校","小学数学教师","初级专业技术岗位","财政拨款",3,"不限","本科学历或硕士研究生及以上学历","与报名学历相对应的学位","研究生专业为：数学(一级学科)（0701）、学科教学(数学)(专业学位)（045104）、课程与教学论(数学方向)（040102）、小学教育（专业学位）（045115）\n本科专业为：数学类(一级学科)（0701）、教育学(数学方向)（040101）、小学教育（040107）","须在2025年7月31日前取得相应的教师资格证（在2025年7月31日前已经通过相应教师资格证笔试和面试考试未进行认定的，须在办理聘用备案手续前取得相应的教师资格证）","报名邮箱：35713060@qq.com\n报名电话：0431-85905162、85901901","0431-81501849"]
[176,"经开区","长春经济技术开发区文化体育和教育局","长春经济技术开发区博远学校","初中数学教师","初级专业技术岗位","财政拨款",2,"不限","本科学历或硕士研究生及以上学历","与报名学历相对应的学位","研究生专业为：数学（一级学科）（0701）、学科教学（数学）（专业学位）（045104）、课程与教学论（数学方向）（040102） \n本科专业为：数学类（一级学科）（0701）","须在2025年7月31日前取得相应的教师资格证（在2025年7月31日前已经通过相应教师资格证笔试和面试考试未进行认定的，须在办理聘用备案手续前取得相应的教师资格证）","报名邮箱：314849203@qq.com\n报名电话：0431-84612890","0431-84612890"]
[177,"经开区","长春经济技术开发区文化体育和教育局","长春经济技术开发区博远学校","初中英语教师","初级专业技术岗位","财政拨款",1,"不限","本科学历或硕士研究生及以上学历","与报名学历相对应的学位","研究生专业为：英语语言文学（050201）、学科教学(英语)(专业学位 )（045108）、课程与教学论(英语方向)（040102）、英语笔译(专业学位）（055101）、英语口译(专业学位）（055102）\n本科专业为：英语（050201）","须在2025年7月31日前取得相应的教师资格证（在2025年7月31日前已经通过相应教师资格证笔试和面试考试未进行认定的，须在办理聘用备案手续前取得相应的教师资格证）","报名邮箱：314849203@qq.com\n报名电话：0431-84612890","0431-84612890"]
[178,"经开区","长春经济技术开发区文化体育和教育局","长春经济技术开发区博远学校","小学体育教师","初级专业技术岗位","财政拨款",1,"不限","本科学历或硕士研究生及以上学历","与报名学历相对应的学位","研究生专业为：体育学(一级学科)（0403）、体育(专业学位一级学科)（0452）、学科教学（体育）(专业学位)(045112)、课程与教学论(体育方向)(040102)\n本科专业为：体育学类(一级学科)(0402)","须在2025年7月31日前取得相应的教师资格证（在2025年7月31日前已经通过相应教师资格证笔试和面试考试未进行认定的，须在办理聘用备案手续前取得相应的教师资格证）","报名邮箱：314849203@qq.com\n报名电话：0431-84612890","0431-84612890"]
[{"$f":"ROW()-2","v":179},"经开区","长春经济技术开发区文化体育和教育局","长春经济技术开发区博远学校","小学美术教师","初级专业技术岗位","财政拨款",1,"不限","本科学历或硕士研究生及以上学历","与报名学历相对应的学位","研究生专业为：艺术学(一级学科)(美术与书法方向)(1301)、美术与书法（专业学位)（一级学科）(1356)、学科教学(美术)(专业学位)(045113)\n本科专业为：美术学(130401)、绘画(130402)、中国画(130406T)、漫画(130410T)、美术教育(130413TK)","须在2025年7月31日前取得相应的教师资格证（在2025年7月31日前已经通过相应教师资格证笔试和面试考试未进行认定的，须在办理聘用备案手续前取得相应的教师资格证）","报名邮箱：314849203@qq.com\n报名电话：0431-84612890","0431-84612890"]
[180,"经开区","长春经济技术开发区文化体育和教育局","长春经济技术开发区博远学校","小学科学教师","初级专业技术岗位","财政拨款",2,"不限","本科学历或硕士研究生及以上学历","与报名学历相对应的学位","研究生专业为：物理学(一级学科)(0702)、化学(一级学科)(0703)、生物学(一级学科)(0710)、学科教学(物理)(专业学位)(045105)、学科教学(化学)(专业学位)(045106)、学科教学(生物)(专业学位)(045107)、科学与技术教育(专业学位)(045117)\n本科专业为：物理学类(一级学科)(0702)、化学类(一级学科)(0703)、生物科学类(一级学科)(0710)、科学教育(040102)","须在2025年7月31日前取得相应的教师资格证（在2025年7月31日前已经通过相应教师资格证笔试和面试考试未进行认定的，须在办理聘用备案手续前取得相应的教师资格证）","报名邮箱：314849203@qq.com\n报名电话：0431-84612890","0431-84612890"]
[181,"经开区","长春经济技术开发区文化体育和教育局","长春经济技术开发区博远学校","小学音乐教师","初级专业技术岗位","财政拨款",1,"不限","本科学历或硕士研究生及以上学历","与报名学历相对应的学位","研究生专业为：音乐(专业学位一级学科)(1352)、学科教学(音乐)(专业学位)(045111)\n本科专业为：音乐学(130202)","须在2025年7月31日前取得相应的教师资格证（在2025年7月31日前已经通过相应教师资格证笔试和面试考试未进行认定的，须在办理聘用备案手续前取得相应的教师资格证）","报名邮箱：314849203@qq.com\n报名电话：0431-84612890","0431-84612890"]
[182,"新区","长春新区教育局","长春高新技术产业开发区慧谷学校","初中语文教师","初级专业技术岗位","财政拨款",1,"不限","本科学历或硕士研究生及以上学历","与报名学历相对应的学位","研究生专业为：中国语言文学(一级学科)(0501)、学科教学(语文)(专业学位)(045103)、课程与教学论(语文方向)(040102)\n本科专业为：中国语言文学类(一级学科)(0501)","须在2025年7月31日前取得相应的教师资格证（在2025年7月31日前已经通过相应教师资格证笔试和面试考试未进行认定的，须在办理聘用备案手续前取得相应的教师资格证）","报名邮箱：604381135@qq.com  \n报名电话：13756500569 ","0431-81337330"]
[183,"新区","长春新区教育局","长春高新技术产业开发区慧仁学校","初中地理教师","初级专业技术岗位","财政拨款",1,"不限","本科学历或硕士研究生及以上学历","与报名学历相对应的学位","研究生专业为：地理学(一级学科)(0705)、学科教学(地理)(专业学位)(045110)\n本科专业为：地理科学类(一级学科)(0705)","须在2025年7月31日前取得相应的教师资格证（在2025年7月31日前已经通过相应教师资格证笔试和面试考试未进行认定的，须在办理聘用备案手续前取得相应的教师资格证）","报名邮箱：414153184@qq.com\n报名电话：0431-82537019","0431-81337330"]
[184,"新区","长春新区教育局","长春高新技术产业开发区慧仁学校","初中语文教师","初级专业技术岗位","财政拨款",2,"不限","本科学历或硕士研究生及以上学历","与报名学历相对应的学位","研究生专业为：中国语言文学(一级学科)(0501)、学科教学(语文)(专业学位)(045103)\n本科专业为：汉语言文学(050101)、汉语言(050102)、应用语言学(050106T)、中国语言与文化(050108T)","须在2025年7月31日前取得相应的教师资格证（在2025年7月31日前已经通过相应教师资格证笔试和面试考试未进行认定的，须在办理聘用备案手续前取得相应的教师资格证）","报名邮箱：414153184@qq.com\n报名电话：0431-82537019","0431-81337330"]
[185,"新区","长春新区教育局","长春高新技术产业开发区尚德学校","初中地理教师","初级专业技术岗位","财政拨款",1,"不限","本科学历或硕士研究生及以上学历","与报名学历相对应的学位","研究生专业为：地理学(一级学科)(0705)、学科教学(地理)(专业学位)(045110)、课程与教学论(地理方向)(040102)\n本科专业为：地理科学类(一级学科)(0705)","须在2025年7月31日前取得相应的教师资格证（在2025年7月31日前已经通过相应教师资格证笔试和面试考试未进行认定的，须在办理聘用备案手续前取得相应的教师资格证）","报名邮箱：851886036@qq.com\n报名电话：0431-82538547","0431-81337330"]
[186,"新区","长春新区教育局","长春高新技术产业开发区尚德学校","初中生物教师","初级专业技术岗位","财政拨款",1,"不限","本科学历或硕士研究生及以上学历","与报名学历相对应的学位","研究生专业为：生物学(一级学科)(0710)、学科教学(生物)(专业学位)(045107)、课程与教学论(生物方向)(040102)\n本科专业为：生物科学类(一级学科)(0710)","须在2025年7月31日前取得相应的教师资格证（在2025年7月31日前已经通过相应教师资格证笔试和面试考试未进行认定的，须在办理聘用备案手续前取得相应的教师资格证）","报名邮箱：851886036@qq.com\n报名电话：0431-82538547","0431-81337330"]
[187,"新区","长春新区教育局","长春高新技术产业开发区尚德学校","初中语文教师","初级专业技术岗位","财政拨款",1,"不限","本科学历或硕士研究生及以上学历","与报名学历相对应的学位","研究生专业为：中国语言文学(一级学科)(0501)、学科教学(语文)(专业学位)(045103)、国际中文教育(专业学位一级学科)(0453)、课程与教学论(语文方向)(040102)\n本科专业为：中国语言文学类(一级学科)(0501)","须在2025年7月31日前取得相应的教师资格证（在2025年7月31日前已经通过相应教师资格证笔试和面试考试未进行认定的，须在办理聘用备案手续前取得相应的教师资格证）","报名邮箱：851886036@qq.com\n报名电话：0431-82538547","0431-81337330"]
[188,"新区","长春新区教育局","长春新区北辰学校","初中数学教师","初级专业技术岗位","财政拨款",1,"不限","本科学历或硕士研究生及以上学历","与报名学历相对应的学位","研究生专业为：数学(一级学科)(0701)、学科教学(数学)(专业学位)(045104)\n本科专业为：数学类(一级学科)(0701)","须在2025年7月31日前取得相应的教师资格证（在2025年7月31日前已经通过相应教师资格证笔试和面试考试未进行认定的，须在办理聘用备案手续前取得相应的教师资格证）","报名邮箱：1486125993@qq.com\n报名电话：0431-81962917","0431-81337330"]
[{"$f":"ROW()-2","v":189},"新区","长春新区教育局","长春新区北辰学校","初中语文教师","初级专业技术岗位","财政拨款",1,"不限","本科学历或硕士研究生及以上学历","与报名学历相对应的学位","研究生专业为：中国语言文学(一级学科)(0501)、学科教学(语文)(专业学位)(045103)、国际中文教育(专业学位)(一级学科)(0453)\n本科专业为：汉语言文学(050101)、汉语言(050102)、汉语国际教育(050103)、应用语言学(050106T)、中国语言与文化(050108T)","须在2025年7月31日前取得相应的教师资格证（在2025年7月31日前已经通过相应教师资格证笔试和面试考试未进行认定的，须在办理聘用备案手续前取得相应的教师资格证）","报名邮箱：1486125993@qq.com\n报名电话：0431-81962917","0431-81337330"]
[190,"新区","长春新区教育局","长春新区北湖明达学校","初中道德与法治教师","初级专业技术岗位","财政拨款",1,"不限","本科学历或硕士研究生及以上学历","与报名学历相对应的学位","研究生专业为：哲学(一级学科)(0101)，马克思主义理论(一级学科)(0305)，政治学(一级学科)(0302)，学科教学(思政)(专业学位)(045102)  \n本科专业为：马克思主义理论类(一级学科)(0305)，政治学类(一级学科)(0302)","须在2025年7月31日前取得相应的教师资格证（在2025年7月31日前已经通过相应教师资格证笔试和面试考试未进行认定的，须在办理聘用备案手续前取得相应的教师资格证）","报名邮箱：946108029@qq.com\n报名电话：0431−86233925","0431-81337330"]
[191,"新区","长春新区教育局","长春新区北湖明达学校","初中美术教师","初级专业技术岗位","财政拨款",1,"不限","本科学历或硕士研究生及以上学历","与报名学历相对应的学位","研究生专业为：艺术学(美术与书法方向)(1301)，美术与书法(专业学位)(1356)，设计(专业学位)(1357)，学科教学(美术)(专业学位)(045113)；\n本科专业为：美术学类(一级学科)(1304)，设计学类(一级学科)(1305)","须在2025年7月31日前取得相应的教师资格证（在2025年7月31日前已经通过相应教师资格证笔试和面试考试未进行认定的，须在办理聘用备案手续前取得相应的教师资格证）","报名邮箱：946108029@qq.com\n报名电话：0431−86233925","0431-81337330"]
[192,"新区","长春新区教育局","长春新区北湖明达学校","初中语文教师","初级专业技术岗位","财政拨款",1,"不限","本科学历或硕士研究生及以上学历","与报名学历相对应的学位","研究生专业为：中国语言文学(一级学科)(0501)，学科教学(语文)(专业学位)(045103)，课程与教学论(语文方向) (040102)；      \n本科专业为：汉语言文学(050101)，汉语言(050102)","须在2025年7月31日前取得相应的教师资格证（在2025年7月31日前已经通过相应教师资格证笔试和面试考试未进行认定的，须在办理聘用备案手续前取得相应的教师资格证）","报名邮箱：946108029@qq.com\n报名电话：0431−86233925","0431-81337330"]
[193,"新区","长春新区教育局","长春新区北湖实验学校","小学数学教师","初级专业技术岗位","财政拨款",1,"不限","本科学历或硕士研究生及以上学历","与报名学历相对应的学位","研究生专业为：数学(一级学科)(0701)、学科教学(数学)(专业学位)(045104)、课程与教学论(数学方向)                                                                                                                (040102)、小学教育(专业学位)(045115)\n本科专业为：数学与应用数学(070101)、信息与计算科学(070102)、数理基础科学(070103T)、小学教育(040107)","须在2025年7月31日前取得相应的教师资格证（在2025年7月31日前已经通过相应教师资格证笔试和面试考试未进行认定的，须在办理聘用备案手续前取得相应的教师资格证）","报名邮箱：BHSYXX2024@163.com\n报名电话：0431-81100301","0431-81337330"]
[194,"新区","长春新区教育局","长春新区北湖英才学校","初中物理教师","初级专业技术岗位","财政拨款",1,"不限","本科学历或硕士研究生及以上学历","与报名学历相对应的学位","研究生专业为：物理学(一级学科)(0702)、学科教学(物理)(专业学位)(045105)\n本科专业为：物理学类(一级学科)(0702)","须在2025年7月31日前取得相应的教师资格证（在2025年7月31日前已经通过相应教师资格证笔试和面试考试未进行认定的，须在办理聘用备案手续前取得相应的教师资格证）","报名邮箱：438224339@qq.com\n报名电话：0431-86257093","0431-81337330"]
[195,"新区","长春新区教育局","长春新区兴港学校","小学语文教师","初级专业技术岗位","财政拨款",1,"不限","本科学历或硕士研究生及以上学历","与报名学历相对应的学位","研究生专业为：中国语言文学(一级学科)(0501)、国际中文教育(专业学位)(一级学科)(0453)、学科教学(语文)(专业学位)(045103)、课程与教学论(语文方向)(040102)、小学教育(专业学位)(045115)\n本科专业为：中国语言文学类(一级学科)(0501)、教育学(语文方向)(040101)、小学教育(040107)","须在2025年7月31日前取得相应的教师资格证（在2025年7月31日前已经通过相应教师资格证笔试和面试考试未进行认定的，须在办理聘用备案手续前取得相应的教师资格证）","报名邮箱：1339199032@qq.com\n报名电话：13214484082","0431-81337330"]
[196,"新区","长春新区教育局","长春新区正德学校","初中数学教师","初级专业技术岗位","财政拨款",1,"不限","本科学历或硕士研究生及以上学历","与报名学历相对应的学位","研究生专业为：数学(一级学科)(0701)、统计学(一级学科)(0714)、学科教学(数学)(专业学位)(045104)、课程与教学论(数学方向)(040102)                                                                                                             \n本科专业为：数学类(一级学科)(0701)","须在2025年7月31日前取得相应的教师资格证（在2025年7月31日前已经通过相应教师资格证笔试和面试考试未进行认定的，须在办理聘用备案手续前取得相应的教师资格证）","报名邮箱：851886036@qq.com\n报名电话：0431-82538547","0431-81337330"]
[197,"新区","长春新区教育局","长春新区正德学校","初中语文教师","初级专业技术岗位","财政拨款",1,"不限","本科学历或硕士研究生及以上学历","与报名学历相对应的学位","研究生专业为：中国语言文学(一级学科)(0501)、学科教学(语文)(专业学位)(045103)、国际中文教育(专业学位一级学科)(0453)、课程与教学论(语文方向)(040102)\n本科专业为：中国语言文学类(一级学科)(0501)","须在2025年7月31日前取得相应的教师资格证（在2025年7月31日前已经通过相应教师资格证笔试和面试考试未进行认定的，须在办理聘用备案手续前取得相应的教师资格证）","报名邮箱：851886036@qq.com\n报名电话：0431-82538547","0431-81337330"]
[198,"新区","长春新区教育局","长春新区致远学校","初中数学教师","初级专业技术岗位","财政拨款",1,"不限","本科学历或硕士研究生及以上学历","与报名学历相对应的学位","研究生专业为：数学(一级学科)(0701)、学科教学(数学)(专业学位)(045104)、课程与教学论(数学方向)                                                                                                                (040102)、小学教育(专业学位)(045115)\n本科专业为：数学类(一级学科)(0701)","须在2025年7月31日前取得相应的教师资格证（在2025年7月31日前已经通过相应教师资格证笔试和面试考试未进行认定的，须在办理聘用备案手续前取得相应的教师资格证）","报名邮箱：2317472239@qq.com\n报名电话：13324469237","0431-81337330"]
[199,"新区","长春新区教育局","长春新区致远学校","初中语文教师","初级专业技术岗位","财政拨款",1,"不限","本科学历或硕士研究生及以上学历","与报名学历相对应的学位","研究生专业为：语言学及应用语言学(050102)、汉语言文字学(050103)、中国古典文献学(050104)、中国古代文学(050105)、学科教学(语文)(专业学位)(045103)\n本科专业为：汉语言文学(050101)、汉语言(050102)、古典文献学(050105)、中国语言与文化(050108T)","须在2025年7月31日前取得相应的教师资格证（在2025年7月31日前已经通过相应教师资格证笔试和面试考试未进行认定的，须在办理聘用备案手续前取得相应的教师资格证）","报名邮箱：2317472239@qq.com\n报名电话：13324469237","0431-81337330"]
[{"$nulls":7},{"$f":"SUM(H3:H201)","v":253}]